{"text_format":"1","workbook":"xlsx","n_sheets":5,"sheets":["MWSU Equipment","EditDialog","TSG Code","PurchData","Cheat Sheet"],"not_rendered":{"charts":0,"images":0,"macros":1,"external_links":0,"defined_names":20,"comments":0,"pivot_tables":0},"unopened":[{"sheet":"EditDialog","index":1,"reason":"not_a_worksheet"},{"sheet":"TSG Code","index":2,"reason":"part_missing"}],"bounds":{"document_bytes":16777216,"sheet_cells":100000,"rows_first":2000,"rows_last":500,"rows_between":2000,"halvings":0,"cell_chars":16384,"cell_head_chars":4096},"cells_cut":0,"cells_raw":0,"read":"whole","date_system":"1900"}

{"sheet":"MWSU Equipment","index":0,"n_rows":640,"n_cols":10,"rows_kept":640,"cut":false,"hidden":false,"merged":[]}
["LINE TYPE","ITEM #","QTY","MFG","MODEL","DESCRIPTION","FUNCTION","UNIT\nPRICE","EXTENDED\nPRICE",1]
[null,1,null,"","","STUDIO (STU)",null,null,null,2]
[null,2,null,"'","","Camera Systems",null,null,null,3]
[null,3,null,"''","","Camera Chains",null,null,null,4]
[null,4,2,"Hitachi","Z-HD5000-ST1","Includes: \n- Z-HD5000 Camera Head\n- TA-Z3 Tripod Adapter Plate\n- CU-HD500 Fiber Optic CCU\n- RU-1000VR Remote Control Unit with 30-ft cable\n- CA-HF1000 Optical Fiber Camera Adapter, \n- VF-HD500 5\" Monochrome CRT studio viewfinder with AT-500 mount\n- Fujinon XA20sx8.5 BRM HDTV lens without extender and Fujinon MS-01 Rear Lens Control Kit","studio cameras",null,null,5]
[null,5,1,"Everfocus","EQH5102","HDcctv / HD-SDI 1080p Mini Box Camera (No Lens)","POV camera",null,null,6]
[null,6,1,"Everfocus","AD-1AS","12V PLUGIN 1 AMP SLIM",null,null,null,7]
[null,7,1,"Pentax","157077","C70228DCPS 2.6mm-8mm DC Auto Iris Vari-focal Plus Lens",null,null,null,8]
[null,8,null,"''","","Tripods & Camera Support",null,null,null,9]
[" ",9,2,"Cartoni","P2D201","P20-Delta Kit includes P20 Pedestal, Delta head, 2 pan bars",null,null,null,10]
[null,10,null,"''","","Teleprompter System",null,null,null,11]
[null,11,2,"BDL Autoscript","ELP15PLUS-P","15\" (38 cm) Standard Bright Color TFT on-camera prompter with Folding Hood - Standard",null,null,null,12]
[null,12,2,"BDL Autoscript","CBMT-R","Adjustable Sliding Counter Balance Weights",null,null,null,13]
[null,13,2,"BDL Autoscript","CBMT-R20","Adjustable Sliding Counter Balance Weights\nOne counterbalance weight. Total weight 20lb (8Kg).",null,null,null,14]
[null,14,2,"BDL Autoscript","MJ-CPY","Mini Jack to Center Pin-Y Cable",null,null,null,15]
[null,15,2,"BDL Autoscript","TALLYPLUS","Tally Plus Numbered Cue Light",null,null,null,16]
[null,16,2,"BDL Autoscript","MTTP-OL","TallyPlus  Mount",null,null,null,17]
[null,17,null,"'","","Studio Communications",null,null,null,18]
[null,18,null,"''","","Wired Microphones",null,null,null,19]
["CFE",19,6,"Sony","ECM77B","Electret Condenser Lavalier Microphone",null,null,null,20]
[null,20,null,"''","","Wired Party-Line",null,null,null,21]
[" ",21,4,"Clearcom","RS-701","Single-Channel standard beltpack:  Encore single-channel standard beltpack. Four-pin male headset connector and three-pin female/male loop through intercom line connectors.",null,null,null,22]
[" ",22,4,"Clearcom","CC-26K-X4","Single-ear light headset XLR-4F:  Single open ear lightweight headset - four-pin female XLR for standard Clear-Com connection.",null,null,null,23]
[null,23,null,"''","","Wired IFB",null,null,null,24]
[" ",24,4,"Clearcom","TR-50","Monaural IFB talent receiver:  Wired monaural IFB talent receiver 3.5mm/1/8\" mini jack includes TS-1. Requires a Clear-Com PSU. See also CC-010A earpiece.",null,null,null,25]
[" ",25,4,"Clearcom","CC-010A","IFB Ear Set (mini-jack):  IFB Ear Set Includes Audio Driver, Coiled Acoustic Ear tube with Clothing Clip, 5 Ft (1.5m) cable with ⅛\" (3.5mm) Straight Mini-jack Connector. Replaces CC-010.",null,null,null,26]
[null,26,null,"'","","Production Support",null,null,null,27]
[null,27,null,"''","","Foldback Monitoring",null,null,null,28]
[null,28,2,"Samsung","DM55E","DM55E 55IN PRO LED LCD DISP HDTV TAA"," ",null,null,29]
[null,29,2,"BTX Technologies ","BTX-HD4003","High Speed HDMI Cable, Swivel,3'",null,null,null,30]
[null,30,2,"Chief","PFCUB","4'-6' Large Flat Panel Mobile AV Cart",null,null,null,31]
[null,31,2,"Black Magic Designs","CONVMBSH4K","Mini Converter - SDI to HDMI 4K Includes power supply",null,null,null,32]
[" ",32,2,"ESE","ES 161UP/Clear",".55-Inch 6-Digit ESE/SMPTE/EBU/ASCII Serial Slave Time Code Remote Display w/ Rack Mount & Clear Option",null,null,null,33]
[" ",33,2,"BTX Technologies ","CV-A1402","BNC(m) to RCA(f) Adapter",null,null,null,34]
[null,34,1,"Chief","PAC710","4'-6' Large Flat Panel Mobile AV Cart",null,null,null,35]
[null,35,1,"Middle Atlantic Products","RK4","4SP(7)RACK, 16DEEP",null,null,null,36]
[null,36,1,"Ross Video","RCP-QE","Ethernet Enabled Q-Series 17 LCD But Control Panel",null,null,null,37]
[null,37,null,"''","","SA/PA Speakers",null,null,null,38]
[null,38,2,"JBL","CONTROL 28","8\" Two-Way Vented System, Built-In Invisiball® Installation System, 175W Power Program, 8 ohms.  Black, Priced as Each, Packed as Pairs.  Master Pack Quantity:  2 Pieces.","SA & foldback",null,null,39]
[null,39,1,"JBL","MTC-28/25CM","120-Watt 4x1 Mixer/Amplifier",null,null,null,40]
[null,40,2,"Mole-Richardson","1201","C-Clamp with Junior Female Receptor",null,null,null,41]
[null,41,1,"Crown","XLS 1000","MultiMount with Ceiling Block Mount2-Channel Power Amplifier rated at 350W @ 4 Ohms Per Channel",null,null,null,42]
[null,42,null,"''","","Studio BSPs",null,null,null,43]
[null,43,2,"AVP","BSP-STUDIO","Custom Studio Broadcast Service Panel Including:\n(3) Camera SMPTE Fiber (Lemo)\n(12) Video Ties & References (BNC)\n(8) Microphpone Ties (XLR3F)\n(4) Reference Ties (BNC)\n(1) TC Tie (XLR3M)\n(8) Audio Ties (XLR3M)\n(4) Intercom PL (XLR3M)\n(4) IFB Ties (XLR3M)\n(4) Network Ties (RJ45)\n(2) Neutrik Fiber Ties (Opticon)",null,null,null,44]
[null,44,2,"Middle Atlantic Products","DWR-21-17","21SP/17D WALLRACK BLACK",null,null,null,45]
[null,45,null,"''","","Broadcast Floor Cable Package",null,null,null,46]
[null,46,5,"Nemal","FOCC612—100FT/LC-ST/BCP","3D SMPTE Cable Assemblies, Dual-LC and Pigtails to Dual-ST and Molex, 100'",null,null,null,47]
[null,47,1,"AVP","CustStuCables","Lot of Studio Floor Cables Including:\n(12) 50' XLR-to-XLR Mic Cables\n(12) 50' BNC-to-BNC Video Cables\n(4) RJ45-to-RJ45 Network/Control Cables",null,null,null,48]
[null,48,null,"''","","Scenic",null,null,null,49]
[null,49,1,"TV Set Designs","TBD","Note: The design, furnish and installation of all scenic elements to be by others outside the scope of this technology package",null,null,null,50]
[null,50,null,"'","","Lighting System",null,null,null,51]
[null,51,1,"ILS","Mics.","Note: The furnish and installation of all lighting grid, dimming control system, power distribution, drapery track and curtain, lighting fixture package, grip equipment package, and hard-cyc to be by others outside the scope of this technology package",null,null,null,52]
[null,52,null,"","","PRODUCTION CONTROL ROOM (PCR)",null,null,null,53]
[null,53,null,"'","","Racks & Consoles",null,null,null,54]
[null,54,null,"''","","Operations Console",null,null,null,55]
[null,55,1,"Eastboard Consoles","PCR Front Console","PCR Front Console Including: EBC RACKBLOCKS® Modular Console System features T-slot aluminum frames, with modular, interchangeable equipment housings, and mounting tracks for monitor arms and accessories. Base racks and turrets can be replaced or adapted as needs change. Worksurfaces are supported by steel brackets, providing unobstructed knee clearance below. Console frames include internal wireways, and vented, sliding, removable ABS door panels, front and rear.\nDETAILS:\n• standard depth aluminum extrusion frame\n• cabinetry finished in Grey MCP with Black trim\n• worksurface finished with standard-line Wilsonart laminate\n• worksurface front edge finished with half-round vinyl bullnose\n• leveling feet throughout\n• eleven (11) 6RU sloped EIA equipment turrets with front rails and removable roof\n• eleven (11) flat floor fillers with cable cutout\n• nine (9) 7Flex adjustable monitor arms",null,null,null,56]
[null,56,1,"Eastboard Consoles","PCR Rear Console","PCR Rear Console Including: EBC RACKBLOCKS® Modular Console System features T-slot aluminum frames, with modular, interchangeable equipment housings, and mounting tracks for monitor arms and accessories. Base racks and turrets can be replaced or adapted as needs change. Worksurfaces are supported by steel brackets, providing unobstructed knee clearance below. Console frames include internal wireways, and vented, sliding, removable ABS door panels, front and rear.\nDETAILS:\n• standard depth aluminum extrusion frame\n• cabinetry finished in Grey MCP with Black trim\n• worksurface finished with standard-line Wilsonart laminate\n• worksurface front edge finished with half-round vinyl bullnose\n• leveling feet throughout\nfive (5) 4RU sloped EIA equipment turrets with front rails and removable roof\n• five (5) flat floor fillers with cable cutout\n• five (5) 7Flex adjustable monitor arms\n• free-standing mixing console desk with provision for audio board\n• one (1) 8RU vertical equipment turret\n• one (1) 24RU rolling equipment rack",null,null,null,57]
[null,57,null,"'","","Monitor Wall",null,null,null,58]
[null,58,null,"''","","Video Monitoring",null,null,null,59]
[null,59,3,"Samsung","DM55E","DM55E 55IN PRO LED LCD DISP HDTV TAA"," ",null,null,60]
[null,60,3,"Black Magic Designs","CONVMBSH4K","Mini Converter - SDI to HDMI 4K Includes power supply",null,null,null,61]
[" ",61,3,"Peerless Industries","ST670","Security SmartMount Universal Tilt Mount for 42-Inch - 71-Inch Flat Panel Screens",null,null,null,62]
[null,62,3,"BTX Technologies ","BTX-HD4003","High Speed HDMI Cable, Swivel,3'",null,null,null,63]
[null,63,null,"''","","Audio Monitoring",null,null,null,64]
[null,64,2,"Yamaha","MSP7 Studio ","80W LF/50W HF, Bi-amped 6.5\" Powered Monitor with Magnetic Shielding (each)  (Single)",null,null,null,65]
[null,65,2,"Yamaha","BWS20-190","Ceiling/Wall Speaker Mount Bracket",null,null,null,66]
[null,66,null,"''","","Time Monitoring",null,null,null,67]
[" ",67,1,"ESE","ES 161UP/Clear",".55-Inch 6-Digit ESE/SMPTE/EBU/ASCII Serial Slave Time Code Remote Display w/ Rack Mount & Clear Option",null,null,null,68]
[null,68,null,"'","","Technical Director Position",null,null,null,69]
[null,69,null,"''","","Local Monitoring",null,null,null,70]
[" ",70,1,"Ikegami","ULE-217","21.5-inch HDTV Full HD 1920x1080 pixel professional monitor with stand. Includes 1 ch HD-SDI input.",null,null,null,71]
[null,71,1,"Imagine Communications","CMN-91-3GB","cMon Series compact multi-format Signal Analyzer with integral LCD, 3Gb/s/HD/SD-SDI, 3RU, Half rack",null,null,null,72]
[null,72,1,"Imagine Communications","DRC-3","Double rackmount case for CMN-91, use BLK-1 to fill unused space if needed",null,null,null,73]
[null,73,1,"Imagine Communications","BLK-1","Blank Panel for DRC-1, DRC-2 or DRC-3",null,null,null,74]
[null,74,1,"Dell","P2217H","P2217H 21.5IN LED LCD MON 16:9 320-9791",null,null,null,75]
[null,75,1,"Avocent","MXR5110-001","Matrix Receiver, Direct Connect, CatX, USB, single DVI-I, audio with PSC0004",null,null,null,76]
[null,76,1,"Avocent","RMK-74","Matrix 1U Rack Mount for 3 Transmitters or 2 Receivers",null,null,null,77]
[null,77,1,"Startech","SVKMS","2 Port USB KM Switch - USB Keyboard and Mouse Switch with File Transfer",null,null,null,78]
[null,78,null,"''","","Production Switcher",null,null,null,79]
[" ",79,1,"Ross Video","CBF-236","Carbonite Black 2 M/E Live Production Switcher with 36 Input and 22 Output Chassis Including:\n36 Input 22 Output 2 M/E and 4 MiniME Rack Frame Processing Engine\nStandard System Includes:\n•36 Inputs & 22 outputs\n•2 Full ME’s with 5 keys each (4 full function + 1 transition keyer for DVE and media transitions)\n•4 floating MiniME’s each with 2 Keyers\n•Screen Processing for up to 4 displays/projectors with scaling, bezel compensation and edge blending (via MiniMEs)\n•Multi-Definition support for any of the following formats:\n525, 625, 1080i 50/59.94, 720P 50/59.94, 1080pSF 23.98/25/29.97, 1080p29.97, 1080p50/59.94 (Level A), UHD-1 3840 x\n2160p50/60 (via Quad link)\n•Dual MultiViewer with up to 16 Source Displays each, over 29 Layouts with Tally, Label controls and Clock\n•Robotic Camera Control (VISCA, Canon BU and Ross Cambot)\n•Video Server Control (AMP) with Ross Video Exclusive Roll Clip function\n•Graphics System Control (RossTalk)\n•Audio Mixer Control (Yamaha 01V96 and DM1000)\n•TSL UMD v3.1 Serial Tally Protocol Transmit and v3.1 Receive with Bus Messages\n•DashBoard Intuitive network menu system\n•Custom Control Macros\n•MediaWipeTM Transitions\n•Standard Mnemonics for Crosspoint Source and Keyer Source display\n•36 Multi-Definition Serial Digital Inputs\n•1 Reference input\n•1 LTC input for use with Ross Video Exclusive LiveEDL\n•4 Keyers with Luma/Linear/Chroma or DVE Keying abilities per M/E\n•1 Transition keyer per M/E for Animated wipes and DVE transitions\n•2 Floating UltraChromeTM Chroma Keyers with Super Fine Keying Quality\n•4 Channel Animation Store with Audio - 8 GB of Memory\n•6 Format Scalar and Frame Sync when in 4 DVE mode (Fixed to the first 6 inputs)\n•4 or 8 Channel Floating 2D DVE for 2D Picture in Picture Boxes or 2D DVE Transitions\n•1 Powerful Pattern Generator and 1 Complex Wash Generator per M/E\n•Wipes and Masks with soft edge borders\n•22 Outputs: AuxBus, Source Direct, ME PGM/PV/CLN and MultiViewers\n•2 AES audio outputs\n•100 Event Memory System for each M/E and MiniME with MemoryAI and Effects Dissolve Recall modes\n•FlexiClean assignable Clean Feed output per M/E.\n•USB port for storing/loading of switcher configuration, memories, custom controls and media files on external Media Drive\n•34 GPIO connections each assignable to GPI or GPO function\n•34 Tally connections\n•Serial tally via TSL Tallyman protocol\n•2RU Chassis\n•Full 10-Bit Processing in both HD and SD modes\n•4:3/16:9 Switchable\n•10 Meter Control Panel Cable\n•Redundant power option\n•Comprehensive System Operation and Engineering Manuals\n•Full 1 Year Transferable Warranty\n•Free Lifetime Software Updates via Ross Website",null,null,null,80]
[" ",80,1,"Ross Video","CB2-PANEL","Carbonite Black 2 2 M/E Panel ONLY!\nCarbonite Black 2 Control Panel\n•16 Crosspoint buttons\n•2 full ME control rows\n•Mnemonics for Crosspoint Source and Keyer Source display\n•4 Custom Control bank select buttons (provides 64 macro buttons)\n•Panel Glow – full RGB led buttons\n•Ethernet rack frame connectivity\n•Redundant power option",null,null,null,81]
[" ",81,1,"Ross Video","PSU-48V5.9A-4PIN","48V 5.9A PSU with 4 Pin Connector for Redundancy or Spare Used with Carbonite Black Series Engines",null,null,null,82]
[" ",82,1,"Ross Video","SMC-9901","Serial to Midi Converter required for support of Yamaha 01V96 and DM1000 Audio Mixers",null,null,null,83]
[null,83,2,"Ross Video","CARBONITEOTR-1DAY","Carbonite Operational Training - 1 Day",null,null,null,84]
[null,84,2,"Ross Video","CARBONITECOM-1DAY","Carbonite Commissioning - 1 Day",null,null,null,85]
[null,85,1,"Ross Video","TRAVEL-PRE-001","Pre Paid Service Expense Trip 1",null,null,null,86]
[null,86,1,"AVP","Tally Breakout Panel","DB37-to-Terminal Block Breakout Panel for (3) DB37 connectors. Includes common ground buss.",null,null,null,87]
[null,87,1,"Ross Video","CARBONITECOM-1DAY","Carbonite Commissioning - 1 Day",null,null,null,88]
[null,88,1,"Ross Video","CARBONITEOTR-1DAY","Carbonite Operations Training - 1 Day",null,null,null,89]
[null,89,1,"Ross Video","TRAVEL-PRE-001","Pre Paid Service Expense Trip",null,null,null,90]
[null,90,null,"''",null,"Local Control",null,null,null,91]
[null,91,1,"Elo Touchsystems ","E266835","1915L 19-Inch LCD Desktop Touchmonitor. IntelliTouch, Dual Serial/USB.","LiveAssist",null,null,92]
[null,92,1,"Ross Video","RCP-QE","Ethernet Enabled Q-Series 17 LCD But Control Panel",null,null,null,93]
[null,93,1,"Dell","210-ABIW","CTO Optiplex 3020 Minitower Utility Grade PC Including: 8GB (2x4G) 1600MHz DDR3 Memory (370-AADC), AMD Radeon R5 240, 1GB, Full Height (DP and DVI-I) display card, 3.5 inch 500GB 7200rpm Hard Disk Drive, and MWSU Standard Load","LiveAssist/Dashboard",null,null,94]
[" ",94,1,"Clearcom","V12RDX4\n","V-Series Panel 1RU 12 Rotary XLR4",null,null,null,95]
[" ",95,1,"Clearcom","110/340\n","340 mm Standard Length GN mic",null,null,null,96]
[null,96,1,"Clearcom","CC-300-X4\n","Single-ear headset XLR-4F",null,null,null,97]
[null,97,null,"'",null,"Director Position",null,null,null,98]
[null,98,null,"''","","Local Monitoring",null,null,null,99]
[null,99,1,"Dell","P2217H","P2217H 21.5IN LED LCD MON 16:9 320-9791",null,null,null,100]
[null,100,2,"Elo Touchsystems ","E266835","1915L 19-Inch LCD Desktop Touchmonitor. IntelliTouch, Dual Serial/USB.","Overdrive",null,null,101]
[null,101,null,"''","","Local Control",null,null,null,102]
[null,102,1,"TC Electronics","967001001","Level Pilot - Analog Stereo Volume Control, High-resolution, with Quad-Core Cable (2 x XLR-F, 2 x XLR-M) - Sandblast Aluminum",null,null,null,103]
[" ",103,1,"ESE","ES 466P","SMPTE/EBU Presettable Up/Down Timer Rack Mounted",null,null,null,104]
[null,104,1,"Dell","210-ABIW","CTO Optiplex 3020 Minitower Utility Grade PC Including: 8GB (2x4G) 1600MHz DDR3 Memory (370-AADC), AMD Radeon R5 240, 1GB, Full Height (DP and DVI-I) display card, 3.5 inch 500GB 7200rpm Hard Disk Drive, and MWSU Standard Load","LiveAssist/Dashboard",null,null,105]
[" ",105,1,"BTX Technologies ","GEF-CABAUDIO6","Gefen Mini Stereo Audio Cable, 6'",null,null,null,106]
[" ",106,1,"BTX Technologies ","BTX-HD4003","High Speed HDMI Cable, Swivel,3'",null,null,null,107]
[" ",107,1,"BTX Technologies ","YD-USBAB10","BELKIN 2.0 Compliant USB A-B,10'",null,null,null,108]
[null,108,1,"Cables To Go","54327","10ft DisplayPort™ Male to HD Male Adapter Cable - Black CTG 54327",null,null,null,109]
[" ",109,1,"Clearcom","V12RDX4\n","V-Series Panel 1RU 12 Rotary XLR4",null,null,null,110]
[" ",110,1,"Clearcom","110/340\n","340 mm Standard Length GN mic",null,null,null,111]
[null,111,1,"Clearcom","CC-300-X4\n","Single-ear headset XLR-4F",null,null,null,112]
[null,112,null,"'",null,"Associate Director/Prompter Position",null,null,null,113]
[null,113,null,"''","","Local Monitoring",null,null,null,114]
[null,114,1,"Dell","P2217H","P2217H 21.5IN LED LCD MON 16:9 320-9791",null,null,null,115]
[null,115,null,"''","","Local Control",null,null,null,116]
[null,116,1,"Dell","210-ABIW","CTO Optiplex 3020 Minitower Utility Grade PC Including: 8GB (2x4G) 1600MHz DDR3 Memory (370-AADC), AMD Radeon R5 240, 1GB, Full Height (DP and DVI-I) display card, 3.5 inch 500GB 7200rpm Hard Disk Drive, and MWSU Standard Load","LiveAssist/Dashboard",null,null,117]
[null,117,1,"Ross Video","INC-HW-CUE-FOOT","The CueScript foot controller allows anchors to control the bundled CueIT teleprompter software while seated at the news desk or\nwhile standing.\nCueScript’s foot control device that operates and adjusts the speed and direction of scrolling text on the prompter.\nWith a stylised and sturdy design employing the very latest components for durability and reliance, the CSFSC foot control uses\na capacitive encoder to give finite control and complete reliability. Much like an accelerator pedal, the further the pedal is pushed,\nthe faster the scroll of text. Carefully designed and engineered to provide the optimal balance of sensitivity, resistance and comfort,\nwhether standing or seated.\n- Capacitive Encoder Technology for Super Smooth Scrolling\n- Connects via USB to the PC Running CueIT Software.\n- Ethernet and CAN Bus over Coaxial Cable Connection when Used in Conjunction with the Optional CueB Software Device Interface\n(Sold Separately).\n- One Year Hardware Warranty",null,null,null,118]
[null,118,1,"Ross Video","INC-OPT-CUEIT","CueScript CueIT teleprompter software for use with Inception.\nA truly operator and production friendly prompting software, CueIT has been developed with a deep understanding of what it is to be\na prompt operator. Simplicity of visual content, yet intensely packed with necessary and useful features, all of which can be easily\nviewed and accessed within the one screen, all while being extremely easy to use and user friendly.\nConnected via a MOS interface to the newsroom, the prompter will reflect any changes made to the production line up immediately.\nThe CueIT software also supports standalone prompting outside of the newsroom using Microsoft Word documents.or text files.\nThis software edition is specifically designed to work with Inception. It will not connect to any third party newsroom systems.\nHardware is not included. This software must be run on a system independent of the Inception server","included in Inception package",null,null,119]
[null,119,1,"Ross Video","INC-EXP-MOS-CUE","Inception - MOS Device for CueIT Single MOS device license for use with the included CueScript CueIT MOS Teleprompter software.","included",null,null,120]
[" ",120,1,"Clearcom","V12RDX4\n","V-Series Panel 1RU 12 Rotary XLR4",null,null,null,121]
[" ",121,1,"Clearcom","110/340\n","340 mm Standard Length GN mic",null,null,null,122]
[null,122,1,"Clearcom","CC-300-X4\n","Single-ear headset XLR-4F",null,null,null,123]
[null,123,null,"'",null,"Production GFX Position",null,null,null,124]
[null,124,null,"''",null,"Character Generator",null,null,null,125]
[null,125,1,"Ross Video","XST2-0101-M5","XPression Studio - Dual (SW+HW)\nFully Loaded Package Includes Creation & Playout Software\n• 4 RU Rackmount Chassis with Current Ross HW specification, ask representative for details\n• Support for 2 Video Output Channels, Each with Video+Key\n• Unlimited Output Layers\n• Support for 2 Video Input Channels\n• Support for 1 Preview Channel\n• Support for Multiple Virtual Channels\n• GPI Card (10 pins)",null,null,null,126]
[null,126,1,"Ross Video","XDS0-0001","XPression Designer (SW Only)\n• For the Graphic Designer and the offline creation of Templates and Sequences\n• Requires Customer-supplied Workstation (see Ross for latest specs) or XPression Workstation (XPN-WKS)\n• No Video Output Support\n• Support for Multiple Virtual Video Output\nProject Video Format Conversion\n3D Models Support\nLive Input Shader (DVE/Keying)\nWebcam Input (DirectShow) Support\nPowerPoint Shader\nWindow Capture Shader\n2D / 3D Font Engine\nMulti Language Support\n.Net based scripting",null,null,null,127]
[null,127,1,"Ross Video","XPN-GW-HW-SW-M5","XPression Gateway (SW+HW)\nControl System for MOS, NLE, and Template Builder workflows\n• 4 RU Rackmount Server with GPU card, current Ross specifications\n• XPression Gateway software\n• XPression Offline Engine software",null,null,null,128]
[null,128,1,"Ross Video","XPN-PS-HW-SW","XPression Project Server (SW+HW)\nCentral server to allow collaborative XPression project workflow & media moving\n• 1RU server and software",null,null,null,129]
[null,129,1,"Ross Video","XPN-RS","XPression Remote Sequencer (SW Only)\nPlayout control software for XPression engines\n• Single point of control for multiple XPression engines\n• Unlimited number of engines or channels\n• Thumbnail previews for each channel\n• Load MOS rundowns and select Styles\n• Select Connection Groups for different configurations of engines",null,null,null,130]
[null,130,1,"Ross Video","XST1-SHM","XPression Studio - Single (SW+HW) Maint/Ext Warr",null,null,null,131]
[null,131,1,"Ross Video","XPRESSIONOTR-1DAY","XPression Operational Training - 1 Day",null,null,null,132]
[null,132,1,"Ross Video","XPRESSIONCOM-1DAY","Xpression Commissioning - 1 Day",null,null,null,133]
[null,133,1,"Ross Video","TRAVEL-PRE-003","Pre Paid Service Expense Trip",null,null,null,134]
[null,134,null,"''",null,"Local Monitoring",null,null,null,135]
[" ",135,1,"Black Magic Designs","HDL-SMTVDUO","SmartView Duo",null,null,null,136]
[null,136,1,"Dell","P2217H","P2217H 21.5IN LED LCD MON 16:9 320-9791",null,null,null,137]
[null,137,1,"Avocent","MXR5110-001","Matrix Receiver, Direct Connect, CatX, USB, single DVI-I, audio with PSC0004",null,null,null,138]
[null,138,1,"Avocent","RMK-74","Matrix 1U Rack Mount for 3 Transmitters or 2 Receivers",null,null,null,139]
[null,139,null,"''","","Local Control",null,null,null,140]
[null,140,1,"Ross Video","XPN-KBD","XPression Custom Keyboard",null,null,null,141]
[" ",141,1,"Clearcom","V12RDX4\n","V-Series Panel 1RU 12 Rotary XLR4",null,null,null,142]
[null,142,1,"Clearcom","CC-300-X4\n","Single-ear headset XLR-4F",null,null,null,143]
[null,143,null,"'",null,"Instructor Position",null,null,null,144]
[null,144,null,"''",null,"Local Monitoring",null,null,null,145]
[" ",145,1,"Extron","60-632-02","(AAP 301) Full Rack Width, 1U AAP Mounting Frame - Black",null,null,null,146]
[null,146,2,"Extron","70-150-02","(AC Net AAP) One US Unswitched AC Outlet, One Configurable Phone or Network Connection Point, Includes RJ-11 / 45 Jacks - Double Space AAP - Black",null,null,null,147]
[" ",147,2,"Extron","70-090-12","(Blank Plate - Double) Double Space AAP - Black: Blank Plate",null,null,null,148]
[null,148,null,"'",null,"Producer Position",null,null,null,149]
[null,149,null,"''",null,"Local Monitoring",null,null,null,150]
[" ",150,1,"Black Magic Designs","HDL-SMTVDUO","SmartView Duo","browser/prompter",null,null,151]
[null,151,1,"Dell","P2217H","P2217H 21.5IN LED LCD MON 16:9 320-9791",null,null,null,152]
[null,152,1,"Avocent","MXR5110-001","Matrix Receiver, Direct Connect, CatX, USB, single DVI-I, audio with PSC0004",null,null,null,153]
[null,153,1,"Avocent","RMK-74","Matrix 1U Rack Mount for 3 Transmitters or 2 Receivers",null,null,null,154]
[null,154,null,"''",null,"Web Browser PC",null,null,null,155]
[null,155,1,"Ensemble Designs","BEM-4","BrightEye Mitto Pro 2 Scan Converter","web browser",null,null,156]
[null,156,1,"Ensemble Designs","BEPS","BrightEye Individual Power Supply",null,null,null,157]
[" ",157,1,"Ensemble Designs","BERKMT-RR","BrightEye Rack Mount for all BrightEye Products - includes Retainer Kit",null,null,null,158]
[null,158,2,"Ensemble Designs","BEBPD","BrightEye Double High Blank Panel (for empty slots in Rack Mount)",null,null,null,159]
[null,159,1,"Dell","210-ABIW","CTO Optiplex 3020 Minitower Utility Grade PC Including: 8GB (2x4G) 1600MHz DDR3 Memory (370-AADC), AMD Radeon R5 240, 1GB, Full Height (DP and DVI-I) display card, 3.5 inch 500GB 7200rpm Hard Disk Drive, and MWSU Standard Load","LiveAssist/Dashboard",null,null,160]
[null,160,null,"''","","Local Control",null,null,null,161]
[" ",161,1,"Clearcom","V12RDX4\n","V-Series Panel 1RU 12 Rotary XLR4",null,null,null,162]
[null,162,1,"Clearcom","CC-300-X4\n","Single-ear headset XLR-4F",null,null,null,163]
[null,163,null,"'","","Audio Operator Position",null,null,null,164]
[null,164,null,"''","","Local Monitoring",null,null,null,165]
[null,165,1,"Samsung","DM32E","DM-E Series 32\" Slim Direct-Lit LED Display",null,null,null,166]
[null,166,1,"Black Magic Designs","CONVMBSH4K","Mini Converter - SDI to HDMI 4K Includes power supply",null,null,null,167]
[null,167,1,"BTX Technologies ","BTX-HD4003","High Speed HDMI Cable, Swivel,3'",null,null,null,168]
[null,168,2,"Yamaha","MSP7 Studio ","80W LF/50W HF, Bi-amped 6.5\" Powered Monitor with Magnetic Shielding (each)  (Single)",null,null,null,169]
[null,169,2,"Yamaha","BWS20-190","Ceiling/Wall Speaker Mount Bracket",null,null,null,170]
[null,170,1,"Dell","P2217H","P2217H 21.5IN LED LCD MON 16:9 320-9791",null,null,null,171]
[null,171,1,"Startech","DISPLPORT6L","6 ft DisplayPort Cable with Latches - M/M"," ",null,null,172]
[null,172,null,"''","","Mixing Console",null,null,null,173]
[null,173,1,"Yamaha","DM1000VCM","DIGITAL 96KHZ SMALL FORMAT MIXING CONSOLE. 48 INPUTS, 8 BUSSES, 8 AUX SENDS,",null,null,null,174]
[null,174,1,"Yamaha","MB1000","DM1000 METER BRIDGE WITH\nCONNECTION CABLE AND BRACKETS",null,null,null,175]
[null,175,1,"Yamaha","MY16AE","16-Channel AES/EBU I/O Card; Dual",null,null,null,176]
[null,176,1,"Yamaha","MY8AD96","8Ch Analog Input Expansion",null,null,null,177]
[null,177,null,"''","","Local Control",null,null,null,178]
[" ",178,1,"Clearcom","V12RDX4\n","V-Series Panel 1RU 12 Rotary XLR4",null,null,null,179]
[" ",179,1,"Clearcom","110/340\n","340 mm Standard Length GN mic",null,null,null,180]
[null,180,1,"Clearcom","CC-300-X4\n","Single-ear headset XLR-4F",null,null,null,181]
[null,181,1,"Ross Video","RCP-QE","Ethernet Enabled Q-Series 17 LCD But Control Panel",null,null,null,182]
[null,182,1,"Startech","SVKMS","2 Port USB KM Switch - USB Keyboard and Mouse Switch with File Transfer",null,null,null,183]
[null,183,null,"''","","Local Sources",null,null,null,184]
[null,184,1,"Dell","210-ABIW","CTO Optiplex 3020 Minitower Utility Grade PC Including: 8GB (2x4G) 1600MHz DDR3 Memory (370-AADC), AMD Radeon R5 240, 1GB, Full Height (DP and DVI-I) display card, 3.5 inch 500GB 7200rpm Hard Disk Drive, and MWSU Standard Load","LiveAssist/Dashboard",null,null,185]
[null,185,1,"Focusrite","Scarlett2i2","Scarlett2i2\n2 IN / 2 OUT USB 2.0 Audio Interface with two Mic Preamps",null,null,null,186]
[null,186,1,"Audacity","Audacity 2.0.5","Free audio editor and recorder easy to use for Windows, Mac OS X, GNU / Linux and other operating systems","Freeware",null,null,187]
[null,187,null,"''","","Local Patching",null,null,null,188]
[null,188,2,"Audio Accessories","WEP-9615E-SH","1.5RU 2x48 Audio Patchbay with Quick-Switch™ Normalling system. MONO Spacing  ",null,null,null,189]
[null,189,null,"","","PRODUCTION EQUIPMENT ROOM (PER)",null,null,null,190]
[null,190,null,"'","","Racks & Consoles",null,null,null,191]
[null,191,null,"''","","Equipment Racks",null,null,null,192]
[null,192,5,"Middle Atlantic Products","GRK-44-36HLRD-667687","Custom GRK-44-36HLRD to include: GLVFRD-44 Right Hinged Rear Door, RIB-l-GRK-36B, BB-12, LACE-44-PWRBRK-667687 (2)",null,null,null,193]
[null,193,5,"Middle Atlantic Products","RIB-1-GRK-36B","1-BAY GRK RISER BASE,36D",null,null,null,194]
[null,194,10,"Middle Atlantic Products","PDT-2015CT-387414","Configured PD Thin 20A 20 Outlet TL, Top",null,null,null,195]
[null,195,null,"'","","Patching & Distribution",null,null,null,196]
[null,196,null,"''","","Patching",null,null,null,197]
[null,197,7,"ADC","PPE15232-MVJT-BK","PPE Video Panel, 1.5 RU, 2x32, Midsize Super Video 75 ohm, Normalled, Black",null,null,null,198]
[null,198,12,"Audio Accessories","VPCM-48 B","Mid-Sized Video Patchcord 4' (Black)",null,null,null,199]
[null,199,3,"Audio Accessories","WEP-9615E-SH","1.5RU 2x48 Audio Patchbay with Quick-Switch™ Normalling system. MONO Spacing  ",null,null,null,200]
[null,200,12,"Audio Accessories","824B","Bantam Audio Patchcord 4' (Black)  "," ",null,null,201]
[null,201,12,"Audio Accessories","824A","Bantam Audio Patchcord 4' (Red)"," ",null,null,202]
[null,202,1,"ADC","ADCPP24606","Patch Panel RJ to RJ Cat6 24 port UTP","CAT6 patch",null,null,203]
[null,203,1,"Joseph Electronics","NZP1RU-12-NOSB-GREEN","Custom OCON Panal, 1RU, 12-Position, Loaded with Opticon Duo Hybrid Chassis Connectors, with Green Gaskets","fiber patch",null,null,204]
[null,204,3,"Joseph Electronics","CAJFUR-NOSP-NOSP-1M","PATCH CABLES, OPTICON DUO HYBRID PLUGS BOTH ENDS, SMPTE 311 CABLE, 1M",null,null,null,205]
[null,205,1,"Middle Atlantic Products","CLAW","Wallmount Patch Cable Hanger",null,null,null,206]
[null,206,null,"''","","Conversion & Distribution",null,null,null,207]
[null,207,4,"Ross Video","OG3-FR-CNS","openGear 3.0 Frame with Cooling, Advanced Networking & SNMP",null,null,null,208]
[" ",208,4,"Ross Video","PS-OG3","450 Watt Universal Power Supply for OG3 Frame",null,null,null,209]
[null,209,10,"Ross Video","DEA-8605-R2","Dual HD/SD-SDI Equalizing DA w/ Rear Module",null,null,null,210]
[null,210,4,"Ross Video","MUX-8258-B-R2B","HD/SD 8 Channel AES/EBU Multiplexer 110 Ohm with 10-BNC Rear Module",null,null,null,211]
[null,211,5,"Ross Video","DMX-8259-B-R2B","HD/SD 8 Channel AES/EBU Demultiplexer 75 Ohm with 10-BNC Rear Module",null,null,null,212]
[null,212,4,"Ross Video","SFS-8221-R2","MD-SDI Frame Synchronizer with Rear Module",null,null,null,213]
[" ",213,1,"Ross Video","ADC-8732B-SC-R2","Analog Composite to SDI Decoder with Frame Synchronizer,\n4 Channel Audio Embedding and R2C-8732","Patchable Utility for NTSC-to-SDI",null,null,214]
[" ",214,1,"Ross Video","UDC-8625A-R2","3G/HD/SD High Quality Up/Down/Cross Converter with External Key/Fill & Internal Animation Store with Rear Module",null,null,null,215]
[" ",215,1,"Ross Video","FSR-6601-R2S","3G/HD/SD SDI Fiber Receiver with split 2 slot, 2 card, rear I/O",null,null,null,216]
[" ",216,1,"Ross Video","FST-6602-R2S","3G/HD/SD SDI Fiber Transmitter with split 2 slot, 2 card, rear I/O",null,null,null,217]
[null,217,1,"RDL","HR-DAC1","D to A Converter - 24/192 - AES/EBU and S/PDIF","PGM to ICM",null,null,218]
[null,218,1,"RDL","HR-RA2","Rack adapter for HALF-RACK series",null,null,null,219]
[null,219,1,"RDL","PS-24AS","24 Vdc Switching Power Supply, North American AC Plug, 500 mA, dc Plug",null,null,null,220]
[null,220,1,"RDL","ST-MX2","2 Mic or Line Input Mixer - Mic and Line Out","PGM sum for ICM",null,null,221]
[null,221,1,"RDL","PS-24AS","24 Vdc Switching Power Supply, North American AC Plug, 500 mA, dc Plug",null,null,null,222]
[null,222,null,"'","","Routing Switcher",null,null,null,223]
[null,223,null,"''","","Core SDI Router",null,null,null,224]
[null,224,1,"Ross Video","NK-3G72(32)","32x32 3G/HD/SD Reclocking SDI Routing System",null,null,null,225]
[null,225,6,"Ross Video","NK-I3G72","8 Channel 3G/HD/SD SDI Input Card for NK72",null,null,null,226]
[null,226,6,"Ross Video","NK-O3G72","8 Channel 3G/HD/SD Reclocking SDI Output Card for NK72",null,null,null,227]
[null,227,1,"Ross Video","NK-IPS","NK Network IP Configuration Device",null,null,null,228]
[" ",228,1,"Ross Video","NK-GPI","GPI Interface Unit",null,null,null,229]
[null,229,1,"Ross Video","NK-RP1/P","1RU NK Series Dual Redundant Power Supply, +15 Volt (100 Watt total power).",null,null,null,230]
[null,230,1,"Ross Video","Dashboard","Feature Rich Remote Control and Monitoring Application Based on TCP/IP","included",null,null,231]
[null,231,1,"Ross Video","DB-COM-1DAY","Commissioning, 1 Day",null,null,null,232]
[null,232,1,"Ross Video","TRAVEL-PRE-001","Pre Paid Service Expense Trip 1",null,null,null,233]
[null,233,null,"''","","KVM Matrix",null,null,null,234]
[null,234,1,"Avocent","MXS5120-001","Matrix 20-port CatX Switch",null,null,null,235]
[null,235,7,"Avocent","MXT5120-VGA","Matrix Transmitter, Direct Connect, CatX, VGA with CBL0087 included",null,null,null,236]
[null,236,null,"''","","Router QC Station",null,null,null,237]
[null,237,1,"Datacolor","S5EL100","Spyder5ELITE Display Calibration System",null,null,null,238]
[null,238,1,"Ikegami","HLM-1751WR","17-inch HDTV/SDTV Multi-Format LCD Monitor, Full HD widescreen 17-inch FHD(1920x1080) LCD panel., AC/DC input with a wide viewing angle (170 degree H/V), high contrast ratio (800:1), fast response time and faithful color reproduction",null,null,null,239]
[null,239,1,"Middle Atlantic Products","RM-LCD-PNLK","3SP LCD PNL W/KNUCKLE",null,null,null,240]
[null,240,1,"Imagine Communications","CMN-91-3GB","cMon Series compact multi-format Signal Analyzer with integral LCD, 3Gb/s/HD/SD-SDI, 3RU, Half rack",null,null,null,241]
[null,241,1,"Imagine Communications","DRC-3","Double rackmount case for CMN-91, use BLK-1 to fill unused space if needed",null,null,null,242]
[null,242,1,"Imagine Communications","BLK-1","Blank Panel for DRC-1, DRC-2 or DRC-3",null,null,null,243]
[null,243,1,"Black Magic Designs","HDL-AUDMON1RU","Blackmagic Audio Monitor",null,null,null,244]
[null,244,1,"Ross Video","RCP-QE","Ethernet Enabled Q=Series 17 LCD But Control Panel",null,null,null,245]
[" ",245,1,"Clearcom","V12RDX4\n","V-Series Panel 1RU 12 Rotary XLR4",null,null,null,246]
[" ",246,1,"Clearcom","110/340\n","340 mm Standard Length GN mic",null,null,null,247]
[null,247,1,"Clearcom","CC-300-X4\n","Single-ear headset XLR-4F",null,null,null,248]
[null,248,1,"Avocent","MXR5110-001","Matrix Receiver, Direct Connect, CatX, USB, single DVI-I, audio with PSC0004",null,null,null,249]
[null,249,1,"Avocent","RMK-74","Matrix 1U Rack Mount for 3 Transmitters or 2 Receivers",null,null,null,250]
[null,250,1,"I-Tech","ELDW117HDFe","Eagle Series: 1U 17\" wide screen 1920x 1080 HD 16:9 300nits VGA, DVI\ninput, Resolution color TFT LCD with PS/2 an dUSB mouse touchpad.\nShort depth 14.5 min, 24\" Max\" with 20lbs only. Built in Power supply",null,null,null,251]
[null,251,1,"Dell","210-ABIW","CTO Optiplex 3020 Minitower Utility Grade PC Including: 8GB (2x4G) 1600MHz DDR3 Memory (370-AADC), AMD Radeon R5 240, 1GB, Full Height (DP and DVI-I) display card, 3.5 inch 500GB 7200rpm Hard Disk Drive, and MWSU Standard Load","LiveAssist/Dashboard",null,null,252]
[null,252,null,"'","","Production SAN",null,null,null,253]
[null,253,null,"''","","Production Asset Management",null,null,null,254]
[null,254,1,"Ross Video","STR-SYS-EDU","Streamline Academic Edition - System Bundle\nStreamline Academic Edition is a comprehensive media asset management solution for graphics, providing integrated graphics workflows, order management, placeholders, reporting, and analytics in a web-based interface. The Streamline Academic Edition system bundle includes:\n- Streamline Academic Edition Software\n- Streamline Server Hardware\nNote: This bundle is only available for registered academic institutions at a post-secondary level.\nNote: This bundle supports a maximum of 40 additional concurrent user licenses (sold separately).\nNote: This bundle does not support redundancy.\nNote: This software requires at least one day of on-site commissioning (expenses extra).\nNote: This software requires at least two days of on-site operational training (expenses extra).",null,null,null,255]
[null,255,1,"Ross Video","STR-SW-EDU","Streamline Academic Edition (Post Secondary) - Software\nStreamline Academic Edition is a comprehensive media asset management solution for graphics, providing integrated graphics\nworkflows, order management, placeholders, reporting, and analytics in a web-based interface. The Streamline Academic Edition\nsoftware includes:\n- Streamline Academic Edition Software\n- Ten (10) Concurrent User Licenses\n- Integrated Graphics Workflows with XPression via Drag and Drop\n- Detailed Metadata Tagging, Searching, and Asset Discovery\n- Order Management Suite with Asset Placeholders\n- Sophisticated Reporting and Analytics Tools\n- Ingest and Download Tracking of Assets\n- Integrated PostgreSQL Database\n- One Year of Software Maintenance and Support\nNote: This software is only available for registered academic institutions at a post-secondary level.\nNote: This software supports a maximum of 40 additional concurrent user licenses (sold separately).\nNote: This software does not support redundancy.\nNote: The non-bundled software-only option is only available in select territories. Contact MPM for more details.\nNote: The non-bundled software-only option requires an equivalent server to STR-HW-SERVER for support.\nNote: This software requires at least one day of on-site commissioning (expenses extra).\nNote: This software requires at least two days of on-site operational training (expenses extra).","included",null,null,256]
[null,256,10,"Ross Video","STR-EXP-USER-EDU","Streamline - Concurrent User License (Academic)\nOne concurrent user license for Streamline. The software requires one concurrent user license for every user actively logged into the system at any given time. Note: This license is available for academic institutions only.","included",null,null,257]
[null,257,10,"Ross Video","STR-EXP-USER-EDU","Streamline - Concurrent User License (Academic)\nOne concurrent user license for Streamline. The software requires one concurrent user license for every user actively logged into the system at any given time. Note: This license is available for academic institutions only.",null,null,null,258]
[null,258,1,"Ross Video","STR-OPT-LDAP","Streamline - LDAP/ActiveDirectory Plugin\nSupport for synchronizing users with an existing corporate directory using LDAP and/or ActiveDirectory technology. This feature allows enterprise customers to ingest all of the users and roles/groups from their corporate directory, either by filter or globally, allowing users to authenticate with Streamline using their corporate username and password.",null,null,null,259]
[null,259,null,"''","","NLE Licensing & Storage",null,null,null,260]
[null,260,1,"Avid","7070-03117-01","Avid ISIS 3 meter optical multi-mode cable for 10 Gigabit Ethernet, LC connectors",null,null,null,261]
[null,261,1,"Avid","0550-30859-00","Avid Education, NX216 NEXIS System Administration, 1 day, onsite",null,null,null,262]
[null,262,1,"Avid","9935-71651-01","Avid NEXIS | E4 120TB Includes Avid | NEXIS | FS Foundation E4 Engine with  two 60TB Media Packs & ExpertPlus w/ Hardware Support",null,null,null,263]
[null,263,1,"Avid","9900-65627-00","Spare 6TB SAS Hard Disk Drive in carrier for Avid NEXIS | E2 <(>&<)> E4 Engine",null,null,null,264]
[null,264,1,"Avid","9900-65632-00","Optical 10Gbps transceiver for Avid NEXIS E2, E4, SDA. 10GbE Ethernet SFP+ LC 300m range, 850nm wavelength",null,null,null,265]
[null,265,1,"Avid","9935-65710-00","Media Composer EDU Floating License: 50 Pack",null,null,null,266]
[null,266,1,"Avid","9935-65679-00","Avid AirSpeed | 5500 MPEG-2 HD 4 Channel with One Year ExpertPlus w/Hardware Support",null,null,null,267]
[null,267,1,"Avid","0530-03097-01","Avid Professional Services, Project Management, Without Expenses",null,null,null,268]
[null,268,3,"Avid","0530-03098-01","Avid Professional Services, System Commissioning, Without Expenses",null,null,null,269]
[null,269,2,"Avid","0550-03540-01 ","Avid Education, Customized Training without Expenses, rate per day, onsite",null,null,null,270]
[null,270,1,"Avid","0550-30217-00","Avid Education, WG 203 AS5000 AirSpeed 5000, 1 day, onsite",null,null,null,271]
[null,271,1,"Avid","0555-03153-01","Avid Professional Services, Avid Travel Expenses (Billed at cost or at a fixed price amount) **","included",null,null,272]
[null,272,null,"''","","NRCS",null,null,null,273]
[null,273,1,"Ross Video","INC-SYS-NEWSEDU","Inception News Academic Edition (Post Secondary) - System Bundle includes:\n- Inception News Academic Edition Software\n- Inception Server Hardware\nNote: This bundle is only available for registered academic institutions at a post-secondary level.\nNote: This bundle supports a maximum of 40 additional concurrent user licenses (sold separately).\nNote: This bundle does not support redundancy.\nNote: This software requires at least two days of on-site commissioning (expenses extra).\nNote: This software requires at least three days of on-site operational training (expenses extra).",null,null,null,274]
[null,274,1,"Ross Video","INC-SW-NEWS-EDU","Inception News Academic Edition (Post Secondary) - Software includes:\n- Inception News Academic Edition Software\n- Ten (10) Concurrent User Licenses\n- One Hundred (100) Social Media Publication Licenses\n- Plugins for Facebook, Twitter, YouTube, Flickr, Instagram, RSS, and Mass Relevance\n- Story Centric Workflow to Centralize Stories Across all Platforms\n- Collaborative Rundown Editing, Timing, and Playout.\n- Integrated Assignment Manager\n- Social Media Discovery, Moderation, and Playlists\n- Social Media Polling for Twitter\n- MOS Enabled Newsroom Supporting v2.6, v2.8, and above.\n- Integrated Ross EZPrompt MOS Teleprompter Software (Hardware Sold Separately)\n- Unlimited Ross MOS Devices for XPression, OverDrive, and Streamline\n- Integrated PostgreSQL Database\n- One Year of Software Maintenance and Support\nNote: This software is only available for registered academic institutions at a post-secondary level.\nNote: This software supports a maximum of 40 additional concurrent user licenses (sold separately).\nNote: This software does not support redundancy.\nNote: The non-bundled software-only option is only available in select territories. Contact MPM for more details.\nNote: The non-bundled software-only option requires an equivalent server to INC-HW-SERVER for support.\nNote: This software requires at least two days of on-site commissioning (expenses extra).\nNote: This software requires at least three days of on-site operational training (expenses extra).","included",null,null,275]
[null,275,10,"Ross Video","INC-EXP-USER-EDU","Inception - Concurrent User (Academic)\nOne concurrent user license for Inception. The software requires one concurrent user license for every user actively logged into the system at any given time. Note: This license is available for academic institutions only.","included",null,null,276]
[null,276,100,"Ross Video","INC-EXP-SOCIAL","Inception - Social Media Account\nA license to add a social media account into Inception. The software requires a license for each social media account added for each supported social media destination, in which they desire to publish, monitor, search, or moderate content.","included",null,null,277]
[null,277,1,"Ross Video","INC-OPTASSIGNMENT","Inception - Assignment Manager Plugin\nSupport for creating, managing, and delegating an assignment workflow within Inception. Allows users to display list and calendar views for current assignments, attach notes source material, contacts, and other story content, and derive stories from an assignment. Provides notification for pending deadlines and a day-to-day view of outstanding tasks and breaking stories.","included",null,null,278]
[null,278,1,"Ross Video","INC-OPT-CONTACT","Inception - Contact Manager Plugin\nSupport for creating, managing, and viewing story contacts and groups within Inception. Allows for attachment of contacts to assignments.","included",null,null,279]
[null,279,1,"Ross Video","INC-OPT-TIMING","Inception - Timing and Production Cues Plugin\nThis plugin adds support for calculated timing columns in the Inception running order, as well as estimated script time calculation for broadcast stories. It includes support for forward and back timing, cumulative, over/under timing, and running order playout. It also allows for creation of anchors which can be assigned to scripts, as well as the ability to create and insert production\ncommands into broadcast stories.","included",null,null,280]
[null,280,1,"Ross Video","NC-OPT-COLUMN","Inception - User Defined Columns Plugin\nAdds support for creating user defined columns in various Inception grids, including running orders, stories, assignments, playlists, and others, depending on which grids are available with your edition of software. Includes many cell formats including checkboxes, dropdown selectors, time and date, users, among others. Adds support for various validators, including minimum and maximum integer values as well as color coding of user created columns.","included",null,null,281]
[null,281,1,"Ross Video","INC-OPT-PLAYLIST","Inception - Social Media Playlists Plugin\nSocial media playlists allow for moderation and curation of content from social media accounts, searches, and RSS feeds. Provides a moderation workflow for content allowing users to drag and drop content from social media sources into a curated playlist, which can then be fed into on-air graphics, content management systems, and other outward facing destinations.","included",null,null,282]
[null,282,1,"Ross Video","INC-OPT-POLLING","Inception - Social Media Polling Plugin\nSocial media polling for Twitter. This feature allows users to engage the Twitterverse, allowing users to vote on specific topics by keyword or hash tag. Polling can be done on a global sample or via a direct engagement with the user. This aggregated poll data can then be used in on-air graphics and other sources.","included",null,null,283]
[null,283,10,"Ross Video","INC-EXP-USER-EDU","Inception - Concurrent User (Academic)\nOne concurrent user license for Inception. The software requires one concurrent user license for every user actively logged into the system at any given time. Note: This license is available for academic institutions only.",null,null,null,284]
[null,284,1,"Ross Video","INC-EXP-MOS-XPN","Inception - MOS Device for Xpression\nSingle MOS device license for use with Ross XPression. This is included when the XPression software with MOS Gateway is purchased by a customer.",null,null,null,285]
[null,285,1,"Ross Video","INC-EXP-MOS","Inception - Third Party MOS Device\nSingle MOS device license for a third-party MOS device. Please contact MPM to confirm list of supported devices.","for Airspeed",null,null,286]
[null,286,1,"Ross Video","INC-OPT-WIRES","Inception - News Wires Plugin\nPlugin for ingest, monitoring, and classification of news wires. Supported formats include ANPA-1312, NITF, Atom, and NewsMLG2. Supported transports include FTP, serial ingest, and web feeds from select services. Please contact MPM for a specific list of supported wire providers. Note: Serial wires require the INC-HW-SERIAL Inception Serial Port Expander hardware.",null,null,null,287]
[null,287,6,"Ross Video","XPN-MOS-PLUGIN","XPression MOS Plug-in (SW Only)\nXPression MOS Plug-in (SW Only)\n• See Ross representative for supported NRCS platforms\n• Per seat cost\n• Licensed by simultaneous connections (floating licenses)\n• Requires XPression Gateway with XPression Offline Engine for previews","Edit Rooms only",null,null,288]
[null,288,null,"''","","Production Automation",null,null,null,289]
[" ",289,1,"Ross Video","OVD-EDUINC-NEWS","OverDrive NEWS Educational Incentive Package\nOverDrive NEWS Primary Base Package for NRCS Productions\nOverDrive NEWS Production Control Software Application\nOverDrive RundownControl Application – 10 license (OVD-RC-Client)\nOverDrive DirectControl Application – 10 license (OVD-DC-Client)\nOverDrive NRCS MOS Gateway – 1 license, connects OverDrive to NRCS\nActive X Plug-in for Newsroom System Desktop Application. Enables Drag &\nDrop of OverDrive Templates into Rundown. 10 Licenses included.\nOverDrive Online Help\nCD with OverDrive Installation and User Manuals\n1st Year Software Maintenance Included\n1 Year Transferable Warranty","promotion",null,null,290]
[null,290,1,"Dell","BDL-716835036","R230 Server Including:\n(1) PowerEdge R320, Intel Xeon E-24XX v2 Processors\n(1) PowerEdge R320 Motherboard, TPM\n(1) ProSupport: Next Business Day Onsite Service After Problem Diagnosis,2 Year Extended\n(1) ProSupport: 7x24 HW / SW Tech Support and Assistance, 3 Year\n(1) Dell Hardware Limited Warranty Plus On Site Service Initial Year\n(1) Dell Hardware Limited Warranty Plus On Site Service Extended Year\n(1) ProSupport: Next Business Day Onsite Service After Problem Diagnosis,Initial Year\n(1) On-Site Installation Declined\n(1) Shipping Material,PowerEdge R320\n(1) On-Board LOM 1GBE (Dual Port for Racks and Towers, Quad Port for Blades)\n(1) iDRAC Port Card\n(1) iDRAC7 Enterprise\n(1) Chassis with up to 4, 3.5\" Cabled Hard Drives\n(1) SATA Cable for 3.5\" in Cabled Chassis\n(1) Bezel-4/8 Drive Chassis\n(1) No RAID with Embedded SATA (1-4 SATA HDD) with Cabled Chassis\n(1) Embedded SATA\n(1) Heat Sink,PowerEdge\n(1) Intel Xeon E5-1410 v2 2.80GHz, 10M Cache, Turbo, 4C, 80W, Max Mem 1333MHz\n(1) 4GB RDIMM, 1600MT/s, Low Volt, Single Rank, x8 Data Width (370-AAUI)\n(1) 1600MT/s RDIMMS\n(1) Performance Optimized\n(1) 500GB 7.2K RPM SATA 3Gbps 3.5in Cabled Hard Drive\n(1) Electronic System Documentation and OpenManage DVD Kit for R320\n(1) No CD/DVD\n(1) ReadyRails Sliding Rails With Cable Management Arm\n(1) Dual Hot Plug Power Supplies 350W\n(1) Power Distribution Board for Hot Plug Power Supplies\n(1) Power Cord, NEMA 5-15P to C13, 15 amp, wall plug, 10 feet / 3 meter\n(1) Windows Server 2012R2 Standard Edition,Factory Installed, No Media, 2 Socket, 2 VMs\n(1) Windows Server 2012R2 Standard, Media, FI Standard Ed Downgrade image, Eng\n(1) 5-pack of Windows Server 2012 User CALs (Standard or Datacenter)","Overdrive",null,null,291]
[null,291,null,"''","","Application Servers",null,null,null,292]
[null,292,1,"Ross Video","INC-HW-SERVER-PRE","Inception - Server Hardware (Software Preloaded)\nThe Inception Server hardware is a powerful 1 RU server platform running Windows Server 2012 64-bit. It contains a high performance Intel Xeon processor, 16 GB of ECC memory, dual power supplies, and dual 1TB hard disks in a RAID-1 configuration for ultimate fault tolerance. It is used as a base platform for both Inception software nodes and database systems.\n- Inception Server Hardware Platform\n- PowerEdge R320\n- 16GB RDIMM, 1333 MT/s, Low Volt, Dual Rank, x4 Data Width\n- Intel Xeon E5-1410 2.80GHz, 10M Cache, Turbo, 4C, 80W\n- 1333 MHz RDIMMs\n- ReadyRails Sliding Rails Without Cable Management Arm\n- SAS Cable for 3.5\" in Hot Plug Chassis\n- RAID 1 for H710/H310 (2 HDDs)\n- Dual Hot Plug Power Supplies 350W\n- Power Distribution Board for Hot Plug Power Supplies\n- Two (2) 1TB 7.2K RPM SATA 3Gbps 3.5in Hot-plug Hard Drive\n- PERC H710 Integrated RAID Controller, 512MB NV Cache\n- On-Board Broadcom 5720 Dual Port 1GBE\n- Windows Server 2012 64-Bit Operating System\n- One Year Hardware Warranty\nThis server comes with Inception software pre-installed as part of a bundle.","Included",null,null,293]
[null,293,1,"Ross Video","STR-HW-SERVER-PRE","The Streamline Server hardware is a powerful 1 RU server platform running Windows Server 2012 64-bit. It contains a high performance Intel Xeon processor, 16 GB of ECC memory, dual power supplies, and four 4TB hard disks in a RAID-1 configuration for ultimate fault tolerance, with 8 TB of usable storage for assets. It is used as a base platform for both Streamline software nodes and database systems.\n- Streamline Server Hardware Platform\n- PowerEdge R320\n- 16GB RDIMM, 1333 MT/s, Low Volt, Dual Rank, x4 Data Width\n- Intel Xeon E5-1410 2.80GHz, 10M Cache, Turbo, 4C, 80W\n- 1333 MHz RDIMMs\n- ReadyRails Sliding Rails Without Cable Management Arm\n- SAS Cable for 3.5\" in Hot Plug Chassis\n- RAID 1 for H710/H310 (2 HDDs)\n- Dual Hot Plug Power Supplies 350W\n- Power Distribution Board for Hot Plug Power Supplies\n- 4 x 4TB 7.2K RPM SATA 3Gbps 3.5in Hot-plug Hard Drive\n- PERC H710 Integrated RAID Controller, 512MB NV Cache\n- On-Board Broadcom 5720 Dual Port 1GBE\n- Windows Server 2012 64-Bit Operating System\n- One Year Hardware Warranty\nThis server comes with Streamline software pre-installed as part of a bundle.","included",null,null,294]
[null,294,null,"''","","Network Switches",null,null,null,295]
[null,295,1,"Cisco","WS-C4500X-32SFP+","CTO CAT 4500-X 10G IP BASE 32 PT FRONT-T",null,null,null,296]
[null,296,1,"Cisco","CON-SNT-C45X32SF","SMARTNET 8X5XNBD CAT 4500-X 32 PT 10G IP",null,null,null,297]
[null,297,1,"Cisco","C4KX-PWR-750AC-R","CATALYST 4500X750W AC FRONT TO BACK COOL",null,null,null,298]
[null,298,1,"Cisco","C4KX-PWR-750AC-R/2","CTO CAT 4500X 750W AC FRONT TO BACK COOL",null,null,null,299]
[null,299,2,"Cisco","WS-C4948E-S","Catalyst 4948E  IPB  48-Port 10/100/1000+ 4 SFP+  AC p/s",null,null,null,300]
[null,300,2,"Cisco","CON-SNT-C4948ES","SMARTNET 8X5XNBD Catalyst 4948E IPB",null,null,null,301]
[null,301,2,"Cisco","PWR-C49E-300AC-R","Catalyst 4948E 300WAC power supply",null,null,null,302]
[null,302,5,"Cisco","SFP-10G-SR","10GBASE-SR SFP Module",null,null,null,303]
[null,303,null,"''","","Manufacturer Services",null,null,null,304]
[null,304,2,"Ross Video","INC-COM-ONSITE-1DAY","Inception - On-Site Commissioning - 1 Day\nOne day of on-site commissioning for Inception. Four weeks advance scheduling notice is required. Commissioning is on-site on customer supplied equipment. Commissioning labor is invoiced at time of purchase or upon equipment shipment. Travel and accommodation expenses are extra and charged separately, billed at cost after the completion of visit. Customer is responsible for any costs associated with cancellation or rescheduling of on-site services. Once a purchase order is received, all Ross Video commissioning and/or training services may be scheduled by sending an e-mail request to services@rossvideo.com.",null,null,null,305]
[null,305,1,"Ross Video","TRAVEL-PRE-004","TRAVEL-PRE-001 Pre Paid Service Expense Trip 4\nExpenses related to travel costs associated with onsite services. Pre-paid expenses will be invoiced at time of order.",null,null,null,306]
[null,306,2,"Ross Video","STR-COMONSITE-1DAY","Streamline - On-Site Commissioning - 1 Day\nOne day of on-site commissioning for Streamline. Four weeks advance scheduling notice is required. Commissioning is on-site on customer supplied equipment. Commissioning labor is invoiced at time of purchase or upon equipment shipment. Travel and accommodation expenses are extra and charged separately, billed at cost after the completion of visit. Customer is responsible for any costs associated with cancellation or rescheduling of on-site services. Once a purchase order is received, all Ross Video commissioning and/or training services may be scheduled by sending an e-mail\nrequest to services@rossvideo.com.",null,null,null,307]
[null,307,1,"Ross Video","TRAVEL-PRE-005","Pre Paid Service Expense Trip 5\nExpenses related to travel costs associated with onsite services. Pre-paid expenses will be invoiced at time of order.",null,null,null,308]
[null,308,1,"Ross Video","TRAVEL-EXP-001","Post Paid Service Expense Trip 1\nExpenses related to onsite services. Customer will be billed for actual expenses associated with travel and accommodation necessary to deliver onsite service. Invoice will be provided shortly after completion of the corresponding trip. See attached Travel & Accommodation Expense FAQ attached to quote for more details about Ross expense management policies.",null,null,null,309]
[null,309,null,"''","","Training",null,null,null,310]
[null,310,3,"Ross Video","INC-TRN-ONSITEOP-1DAY","Inception - On-Site Operational Training - 1 Day\nOne day of on-site operational training for Inception. Four weeks advance scheduling notice is required. Training is on-site on customer supplied equipment. Training labor is invoiced at time of purchase or upon equipment shipment. Travel and accommodation expenses are extra and charged separately, billed at cost after the completion of visit. Customer is responsible for any costs associated with cancellation or rescheduling of on-site services.\nOnce a purchase order is received, all Ross Video commissioning and/or training services may be scheduled by sending an e-mail request to services@rossvideo.com.",null,null,null,311]
[null,311,1,"Ross Video","TRAVEL-PRE-006","Pre Paid Service Expense Trip 6",null,null,null,312]
[null,312,3,"Ross Video","STR-TRN-ONSITEOP-1DAY","Streamline - On-Site Operational Training - 1 Day\nOne day of on-site operational training for Streamline. Four weeks advance scheduling notice is required. Training is onsite on customer supplied equipment. Training labor is invoiced at time of purchase or upon equipment shipment. Travel and accommodation expenses are extra and charged separately, billed at cost after the completion of visit. Customer is responsible for any costs associated with cancellation or rescheduling of on-site services. Once a purchase order is received, all Ross Video commissioning and/or training services may be scheduled by sending an e-mail request to services@rossvideo.com.",null,null,null,313]
[null,313,1,"Ross Video","TRAVEL-PRE-007","Pre Paid Service Expense Trip 7\nExpenses related to travel costs associated with onsite services. Pre-paid expenses will be invoiced at time of order.",null,null,null,314]
[null,314,1,"Ross Video","TRAVEL-EXP-002","TRAVEL-EXP-002 Post Paid Service Expense Trip 2\nExpenses related to onsite services. Customer will be billed for actual expenses associated with travel and accommodation necessary to deliver onsite service. Invoice will be provided shortly after completion of the corresponding trip. See attached Travel & Accommodation Expense FAQ attached to quote for more details about Ross expense management policies.",null,null,null,315]
[null,315,null,"''","","Warranties (1st Year)",null,null,null,316]
[null,316,1,"Ross Video","INC-999-SW-NEWS-EDU","Inception News Academic Edition (Post Secondary) - Software - Software Maintenance\nProvides software maintenance for one instance of Inception News Academic Edition software for one year. Note: The first year of maintenance is included with the purchase of the software. Maintenance must be purchased yearly on\nsystem anniversary date to maintain active maintenance agreement. Customer is only eligible for software updates released during the period in which they have an active maintenance agreement.. Maintenance must be purchased for the base software and all additional software options or add-ons that constitute the software package in order to to be eligible for software updates.",null,null,null,317]
[null,317,1,"Ross Video","INC-999-HWSERVER","Inception - Server Hardware - Extended Warranty\nProtect your investment with an extended hardware warranty for your Inception servers. This option provides full warranty coverage for one Inception server for one year. Note: This does not include software maintenance, and does not include software updates. Software maintenance must be\npurchased separately.",null,null,null,318]
[null,318,null,"'","","Sources",null,null,null,319]
[null,319,null,"''","","Local Monitoring",null,null,null,320]
[" ",320,1,"Black Magic Designs","HDL-MULTIP6G/16","MultiView 16 Video Multiviewer for 16-Channels of SDI","TX/RX/VTR mon",null,null,321]
[null,321,1,"Dell","P2217H","P2217H 21.5IN LED LCD MON 16:9 320-9791",null,null,null,322]
[null,322,1,"Middle Atlantic Products","RM-LCD-PNLK","3SP LCD PNL W/KNUCKLE",null,null,null,323]
[null,323,null,"''","","Inter-Format Dub",null,null,null,324]
[null,324,1,"ShinyBow","SB-5548LCM","8X8 Composite Video + Analog Audio Matrix Switch","Dub Routing",null,null,325]
[" ",325,3,"BTX Technologies ","CV-A1402","BNC(m) to RCA(f) Adapter",null,null,null,326]
[" ",326,3,"Cables To Go","56784","High Speed HDMi Cable, 10 ft",null,null,null,327]
[null,327,1,"Black Magic Designs","CONVMASA4K","Mini Converter - SDI to Analog 4K","DAC Dub Routing",null,null,328]
[null,328,1,"Black Magic Designs","CONVMAAS2","Mini Converter - Analog to SDI 2","ADC Dub Routing",null,null,329]
[" ",329,2,"Black Magic Designs","PSUPPLY-INT12V10W","Power Supply - Mini Converters 12V10W",null,null,null,330]
[null,330,1,"Middle Atlantic Products","U2","2SP RACKSHELF 14.75DP",null,null,null,331]
["OFE",331,1,"Sony","DSR-1500A","DVCAM Compact Player/Recorder",null,null,null,332]
["OFE",332,1,"Panasonic","AG-2570","VHS Player/Recorder",null,null,null,333]
["OFE",333,1,"Panasonic","DMR-E60","DVD Player/Recorder",null,null,null,334]
[null,334,3,"KAE","POS-1-VTR  ","VTR Pull Out Shelf",null,null,null,335]
[null,335,null,"''","","Web Browser",null,null,null,336]
[null,336,1,"Dell","210-ABIW","CTO Optiplex 3020 Minitower Utility Grade PC Including: 8GB (2x4G) 1600MHz DDR3 Memory (370-AADC), AMD Radeon R5 240, 1GB, Full Height (DP and DVI-I) display card, 3.5 inch 500GB 7200rpm Hard Disk Drive, and MWSU Standard Load","Skype to production via HDMI input of Carbonite",null,null,337]
[null,337,1,"Cables To Go","54327","10ft DisplayPort™ Male to HD Male Adapter Cable - Black CTG 54327",null,null,null,338]
[null,338,null,"''","","Transmission Codecs",null,null,null,339]
[" ",339,1,"AJA","FiDO-T","Single-channel SD/HD/3G SDI to Optical Fiber with looping SD/HD/3G SDI output","HDSDI-to-Optical to Campus Televideo",null,null,340]
[" ",340,1,"AJA","Hi5-Fiber","Hi5 with ST Fiber Input (SD/HD/3G SDI protocol on Fiber)","Optical-to-HDMI at Campus Televideo",null,null,341]
[null,341,1,"Black Magic Designs","TERANEX2D422","Teranex 2D Processor","downconvert & D-to-A",null,null,342]
["OFE",342,1,"Time Warner Cable","TBD","Single TX Path Standard Definition Composite Analog Fiber Optic Telco Terminal Gear","TX to cable headend",null,null,343]
["OFE",343,1,"Time Warner Cable","TBD","Cable Service Set-Top Box with HDMI Output","off-cable RX",null,null,344]
[null,344,1,"Apantac","DA-HDTV-SDI","HDMI 1.3 to SDI converter. 2 x 1 auto detect HDMI and RJ45 (HDMI over CATx) inputs selector. Active HDMI output (HDMI loop out) . Two identical SDI outputs. Manages HDCP. Supports embedded audio. Minimum processing delay (no scaler, no frame rate / resolution convertion). Supported resolutions: 1080p > 1080p 3G SDI or 1080i HD SDI (adjustable by dip switch), 1080i > HD SDI, 720p > HD SDI, 480i / SD SDI > SD SDI. Supported frequencies: 50/59.94/60. Comes with a 5 VDC power supply. ","off-cable RX",null,null,345]
[null,345,1,"Middle Atlantic Products","U2","2SP RACKSHELF 14.75DP","off-cable RX",null,null,346]
[null,346,null,"''","","Utility Processing",null,null,null,347]
[null,347,1,"Black Magic Designs","TERANEX2D422","Teranex 2D Processor","routable",null,null,348]
[null,348,null,"'","","Intercom Headend",null,null,null,349]
[null,349,null,"''","","Intercom Matrix",null,null,null,350]
[" ",350,1,"Clearcom","ECLIPSE-HX-PICO","Eclipse HX-Pico, 36-port 1RU digital matrix:  \n1RU HX-PiCo 36-port matrix frame. 1RU frame with user menu and 32 RJ-45 programmable panel/4-wire ports and four 4-wire in/out ports. Matrix has dual-redundant PSUs. Requires EHX configuration software.",null,null,null,351]
[" ",351,1,"Clearcom","EHX.7.5.0","EHX - Eclipse HX configuration system programming software DVD v7.5 with manuals. New Configuration application for HX systems based on V-series and Iseries panels only. (ECS 5.2.x is available for Legacy compatible systems). License includes use of EHX client software on multiple PC's on a single Eclipse HX networked matrix system. If you wish to use the software on more than one matrix network, you must contact Clear-Com, and if required, purchase further licenses. Please see \"Upgrade-Kits\" for Eclipse to Eclipse-HX upgrades.",null,null,null,352]
[null,352,null,"''","","Intercom Interfaces",null,null,null,353]
[" ",353,3,"Clearcom","PS-702","2 Ch. rack mount power supply:  \nEncore two-channel one-amp, (two-amp peak), 1RU rack mount, universal power supply. Two channels X three intercom jacks. One A/B selectable jack and one program input. Three XLR-3 Male connectors for each partyline A and B, and one XLR-3 female for Program Audio in on the rear panel.",null,null,null,354]
[" ",354,1,"Clearcom","IMF-102","1RU interface module frame including PSU:  \n1RU interface module frame with internal PSU, holds one or two horizontal interface modules. Note: Does not power the party-lines attached to CCI-22 modules. ",null,null,null,355]
[" ",355,1,"Clearcom","CCI-22","2 Ch. Partyline Module:  \n2-wire Clear-Com/RTS dual party-line interface. Does not power the party-lines attached to CCI-22 modules, these require Encore master station PSUs such as the PS-702 or MS-702. Includes DB-9 mating connectors.",null,null,null,356]
[null,356,1,"Clearcom","IFB-104","1RU 4 port IFB breakout interface:  \n1RU four-port XLR-3 IFB intercom/audio cue break out matrix interface. Each IFB output and program audio/cue audio uses XLR-3 I/O and is transformer balanced. Connections to the matrix use RJ-45. If directly connecting TR-50s, a power supply such as the PK-7 or PS-702 is required.",null,null,null,357]
[null,357,null,"'","","Reference Headend",null,null,null,358]
[null,358,null,"''","","Reference Generator",null,null,null,359]
[null,359,1,"Evertz","5601MSC+2PS+M+T+HDTG","Master SPG (master clock system includes 6 bi-level/tri-level sync outputs, 5/10 mhz output, 48 khz word clock output, 2 LTC outputs, loop thru genlock, 5/10 mhz input, LTC input and 1 power supply. Redundant power supply. Modem option. Network time protocol. 4 dual outputs configurable SD/HD SDI test/black generators, 2 NTSC/PAL test signal generator outputs, 2 AES generators (balanced & unbalanced).",null,null,null,360]
[null,360,null,"''","","Reference Distribution",null,null,null,361]
[null,361,1,"Ross Video","OG3-FR-CNS","openGear 3.0 Frame with Cooling, Advanced Networking & SNMP",null,null,null,362]
[null,362,7,"Ross Video","UDA-8705A-R2L","Analog Video Utility Distribution Amplifier with 20-Slot frame Rear Module, R2L-8705, Looping input",null,null,null,363]
[null,363,2,"Ross Video","ADA-8405-C-R2C","Analog Audio and Timecode DA with Remote Gain w/ Rear Module",null,null,null,364]
[null,364,1,"Ross Video","DEA-8605-R2","Dual HD/SD-SDI Equalizing DA w/ Rear Module",null,null,null,365]
[null,365,null,"'","","LAN Infrastructure",null,null,null,366]
[null,366,null,"''","","Core Network B-LAN",null,null,null,367]
[null,367,"2","10185207","C5K125-48","C5 48PT 10/100/1000 2 COMBO SFP PT 2 10G, Extreme Networks equipment",null,null,null,368]
[null,368,"1","10188775","STK-RPS-150CH2","2 SLOT SHELF FOR 150W NON POE RPS FOR ST, Extreme Networks equipment",null,null,null,369]
[null,369,"2","10188777","STK-RPS-150PS","150W NON POE REDUN P/S FOR STK SWCH, Extreme Networks equipment",null,null,null,370]
[null,370,"1","10188772","STK-CAB-SHORT","B5/C5 30CM STACKING CBL, Extreme Networks equipment",null,null,null,371]
[null,371,"1","10188771","STK-CAB-LONG","B5/C5 1M STACKING CBL, Extreme Networks equipment",null,null,null,372]
[null,372,"8","10188289","MGBIC-LC03","1000BASE-LX/LH (2KM) MINI GBIC MMF 1PT W, Extreme Networks equipment",null,null,null,373]
[null,373,"4","10190544","10061","PWR CORD NA 10A NEMA 5-15P IEC320 C13 11, Extreme Networks equipment",null,null,null,374]
[null,374,null,"''","","Network Patching",null,null,null,375]
[null,375,1,"Belden","AX105157","CAT6+ Patch Panel BCast 48P 2U",null,null,null,376]
[null,376,null,"","","VOICE BOOTH",null,null,null,377]
[null,377,null,"'","","Racks & Consoles",null,null,null,378]
[null,378,null,"''","","Operations Console",null,null,null,379]
[null,379,1,"GC","VO-DESKTOP","Note: Voiceover Booth desktop shall be mounted on a wall-to-wall countertop with an elevated monitor shelf all furnished and installed by the General Contractor outside the scope of this equipment package.",null,null,null,380]
[null,380,1,"Middle Atlantic Products","RK4","4-Space Rack, 16\" Deep",null,null,null,381]
[null,381,null,"'","","Operator Position",null,null,null,382]
[null,382,null,"''","","DAW",null,null,null,383]
[null,383,1,"Dell","210-AEZQ","Precision Tower 5810 CTO Base NLE Workstation Grade PC Including: 16GB (4x4G) 2133MHz DDR4 RD|MM ECC memory, Intel Xeon E5-1620v3 processor,  Nvidia K4200 4GB display card, 2.5 inch 262GB C3 SATA Drive, and MWSU Standard Load",null,null,null,384]
[null,384,1,"Dell","P2217H","P2217H 21.5IN LED LCD MON 16:9 320-9791",null,null,null,385]
[" ",385,1,"Black Magic Designs","CONVMAS","Mini Converter - SDI to Analog",null,null,null,386]
[null,386,null,"''","","Software",null,null,null,387]
["OFE",387,1,"Adobe","61101764","Creative Cloud Subscription Student & Teacher Edition",null,null,null,388]
[null,388,1,"Avid","9935-65903-00","Pro Tools 12 Software for Students/Teachers Annual Subscription (boxed)",null,null,null,389]
[null,389,1,"Focusrite","Scarlett2i2","Scarlett2i2\n2 IN / 2 OUT USB 2.0 Audio Interface with two Mic Preamps",null,null,null,390]
[null,390,1,"SoundSlides","SoundSlidesPlus","Media Creation Tool for Multimedia Programming Including: audio slide shows, IPTC caption importing, template control, non-audio slide shows, full-screen playback, image movement (pan and zoom), and lower third subtitles",null,null,null,391]
[null,391,1,"Audacity","Audacity 2.0.5","Free audio editor and recorder easy to use for Windows, Mac OS X, GNU / Linux and other operating systems","Freeware",null,null,392]
[null,392,1,"VideoLAN","VLC-MediaPlayer","Free Player Software for play all types of videos such as MP4, FLAC, MP3, OOG, and WMV","Freeware",null,null,393]
[null,393,null,"''","","Talent Support",null,null,null,394]
[null,394,1,"AVP","ON AIR-SW-PNL","Custom Recorning Light Switch Panel Interface including 120V GPI Activated Relay (Dwg # 1233M0559.dwg)",null,null,null,395]
[null,395,1,"RDL","PS-24AS","24 Vdc Switching Power Supply",null,null,null,396]
[null,396,1,"ElectroVoice","RE-20","RE Series Wired Microphones, Variable-D Dynamic Cardioid Microphone, Heavy-Duty, Internal P-Pop Filter, Internal Element Shock-Mount Reduces Vibration-Induced Noise, Bass Roll-Off Switch.",null,null,null,397]
[null,397,1,"ElectroVoice","WSPL-2","Foam windscreen fits RE20 and RE27N/D. Black.",null,null,null,398]
[null,398,1,"Luxo","KM-1 #13605","Black Spring-Loaded Microphone Arm For Microphones 3 - 4Lbs. 41\" w/ Internal Springs. Requires Mounting Brackets: Screw Down Base, C-Clamp, Or Wall Mount.",null,null,null,399]
[null,399,1,"Luxo","50005BK","Counter-Top Bracket for Luxo Microphone Arms - Black",null,null,null,400]
[null,400,1,"Studio Technologies","Model 210","Announcer's Console",null,null,null,401]
[null,401,2,"Studio Technologies","31084","Line Input Card Kit - Allows technician to add line-level input to Models 210 and 212 Announcer’s Consoles; maximum two per unit. Installs in back-panel spare connector location. Card features 3-pin female XLR-type connector and isolation transformer. Kit includes card, interface cable, and hardware.",null,null,null,402]
[null,402,1,"Shure","SRH440","Closed Back Circumaural Studio Headphones",null,null,null,403]
[null,403,null,"''","","Local Sources",null,null,null,404]
[null,404,1,"Atech","PRO-37U","Professional Media Reader/Writer. USB 3.0. Supports The Following Cards / Formats. CompactFlash™ Type I & II, CompactFlash UDMA, Secure Digital, Secure Digital eXtended Capacity (SDXC), micro Secure Digital (microSD), micro Secure Digital eXtended Capacity (microSDXC), mini Secure Digital (miniSD), mini Secure Digital High Capacity (miniSDHC), MultiMediaCard™, RS-MultiMediaCard, Memory Stick™, Memory Stick PRO, Memory Stick Duo, Memory Stick PRO Duo, Memory Stick Micro (M2), xD-Picture Card™, xD-Picture Card Type M / Type M+, xD-Picture Card Type H"," ",null,null,405]
[null,405,null,"''","","Live Voiceover Support",null,null,null,406]
[null,406,1,"Everfocus","EQH5102","HDcctv / HD-SDI 1080p Mini Box Camera (No Lens)","POV camera",null,null,407]
[null,407,1,"Everfocus","AD-1AS","12V PLUGIN 1 AMP SLIM",null,null,null,408]
[null,408,1,"Pentax","157077","C70228DCPS 2.6mm-8mm DC Auto Iris Vari-focal Plus Lens",null,null,null,409]
[" ",409,1,"Black Magic Designs","CONVMCAUDS","Mini Converter - Audio to SDI",null,null,null,410]
[null,410,null,"","","FINISHING EDIT ROOMS 1-6",null,null,null,411]
[null,411,null,"'","","Racks & Consoles",null,null,null,412]
[null,412,null,"''","","Operations Console",null,null,null,413]
["OFE",413,6,"GC","NLE-DESKTOP","Note: Edit workstations shall be mounted on a wall-to-wall countertop with an elevated monitor shelf all furnished and installed by the General Contractor outside the scope of this equipment package.",null,null,null,414]
[null,414,6,"Middle Atlantic Products","RK4","4-Space Rack, 16\" Deep",null,null,null,415]
[null,415,null,"'","","Edit System",null,null,null,416]
[null,416,null,"''","","Local Monitoring",null,null,null,417]
[" ",417,6,"Black Magic Designs","HDL-SMTWSCOPEDUO4K","Smartscope Duo 4K Rack Mounted Dual 6G-SDI Waveform Monitors ",null,null,null,418]
[null,418,6,"Dell","U3415W","34\" UltraSharp LED-Backlit Curved Monitor Including:\n- 21:9 Curved Widescreen Display\n- In-Plane Switching (IPS) Technology\n- HDMI/MHL/DisplayPort/Mini DisplayPort\n- WQHD 3440 x 1440 Native Resolution\n- 2,000,000:1 Dynamic Contrast Ratio\n- 1,000:1 Typical Contrast Ratio\n- 300 cd/m² Brightness\n- 178°/172° Viewing Angles\n- Up to 8 ms Response Time\n- 1.074 Billion Colors",null,null,null,419]
[null,419,15,"Yamaha","MSP7 Studio ","80W LF/50W HF, Bi-amped 6.5\" Powered Monitor with Magnetic Shielding (each)  (Single)",null,null,null,420]
[null,420,15,"Yamaha","BWS20-190","Ceiling/Wall Speaker Mount Bracket",null,null,null,421]
[null,421,1,"Yamaha","SW10","Studio 10\" Powered Subwoofer",null,null,null,422]
[null,422,null,"''","","NLE Workstation",null,null,null,423]
[null,423,6,"Dell","210-AEZQ","Precision Tower 7810 XL Enhanced NLE Workstation Grade PC Including: 64GB (4x16G) 2133MHz DDR4 RD|MM ECC memory, Intel Xeon E5-2697v3 processor,  Nvidia K5200 8GB display card, 3.5 inch 2TB C12 7,200RPM SATA Drive, and MWSU Standard Load",null,null,null,424]
[" ",424,6,"Avid","9935-65950-00","Artist DNxIO Standalone",null,null,null,425]
[" ",425,6,"Avid","9900-65665-01","Artist DNxIO PCIE Connection Kit",null,null,null,426]
[null,426,5,"Focusrite","Scarlett2i2","Scarlett2i2 2 IN / 2 OUT USB 2.0 Audio Interface with two Mic Preamps","audio monitoring ctl",null,null,427]
[null,427,1,"Avid","9935-65017-02","Pro Tools|HD Native Core PCIe Card and HD Omni I/O Bundle",null,null,null,428]
[null,428,null,"''","","Software",null,null,null,429]
["OFE",429,6,"Adobe","61101764","Creative Cloud Subscription Student & Teacher Edition",null,null,null,430]
[null,430,5,"Avid","9935-65903-00","Pro Tools 12 Software for Students/Teachers Annual Subscription (boxed)",null,null,null,431]
[null,431,6,"SoundSlides","SoundSlidesPlus","Media Creation Tool for Multimedia Programming Including: audio slide shows, IPTC caption importing, template control, non-audio slide shows, full-screen playback, image movement (pan and zoom), and lower third subtitles",null,null,null,432]
[" ",432,6,"Black Magic Designs","DV/RESLITE","DaVinci Resolve Lite Software (Free of Charge)","Freeware",null,null,433]
[null,433,6,"Audacity","Audacity 2.0.5","Free audio editor and recorder easy to use for Windows, Mac OS X, GNU / Linux and other operating systems","Freeware",null,null,434]
[null,434,6,"Tableau","TableauPublic","Free Interactive Web Design and Publishing Software","Freeware",null,null,435]
[null,435,6,"GetGimp.Com","GIMP","Free Image Editing Software from photo touch-up, color correction, channel mixing, digital retouching, and image file translation","Freeware",null,null,436]
[null,436,6,"VideoLAN","VLC-MediaPlayer","Free Player Software for play all types of videos such as MP4, FLAC, MP3, OOG, and WMV","Freeware",null,null,437]
[null,437,null,"''","","Local Sources",null,null,null,438]
[null,438,6,"Atech","PRO-37U","Professional Media Reader/Writer. USB 3.0. Supports The Following Cards / Formats. CompactFlash™ Type I & II, CompactFlash UDMA, Secure Digital, Secure Digital eXtended Capacity (SDXC), micro Secure Digital (microSD), micro Secure Digital eXtended Capacity (microSDXC), mini Secure Digital (miniSD), mini Secure Digital High Capacity (miniSDHC), MultiMediaCard™, RS-MultiMediaCard, Memory Stick™, Memory Stick PRO, Memory Stick Duo, Memory Stick PRO Duo, Memory Stick Micro (M2), xD-Picture Card™, xD-Picture Card Type M / Type M+, xD-Picture Card Type H"," ",null,null,439]
[null,439,null,"''","","Local Control",null,null,null,440]
[null,440,6,"Avid","9900-65172-00","MC Color, Artist Series Including:\n- Three Optical Trackballs\n- Three Optical Trackwheels\n- Six Touch Sensitive Rotary Encoders\n- Store Four Color Correction Settings\n- Nine Programmable Soft Keys\n- EUCON, HUI and Mackie Control Protocols\n- Integrated OLED Display\n- Ethernet Connectivity\n- Combines with Artist Series Controllers\n- Windows and Mac Compatible",null,null,null,441]
[null,441,null,"","","BROADCAST LAB",null,null,null,442]
[null,442,null,"'","","Workstations",null,null,null,443]
[null,443,null,"''","","NLE Workstations",null,null,null,444]
["OFE",444,4,"Dell","210-AEZQ","Precision Tower 5810 CTO Base NLE Workstation Grade PC Including: 16GB (4x4G) 2133MHz DDR4 RD|MM ECC memory, Intel Xeon E5-1620v3 processor,  Nvidia K4200 4GB display card, 2.5 inch 262GB C3 SATA Drive, and MWSU Standard Load",null,null,null,445]
["OFE",445,8,"Dell","P2217H","P2217H 21.5IN LED LCD MON 16:9 320-9791",null,null,null,446]
["OFE",446,8,"StarTech","DP2DVI2MM6","6 ft. DisplayPort to DVI Cable",null,null,null,447]
[null,447,19,"Dell","210-AEZQ","Precision Tower 5810 CTO Base NLE Workstation Grade PC Including: 16GB (4x4G) 2133MHz DDR4 RD|MM ECC memory, Intel Xeon E5-1620v3 processor,  Nvidia K4200 4GB display card, 2.5 inch 262GB C3 SATA Drive, and MWSU Standard Load",null,null,null,448]
[null,448,38,"Dell","P2217H","P2217H 21.5IN LED LCD MON 16:9 320-9791",null,null,null,449]
[null,449,38,"StarTech","DP2DVI2MM6","6 ft. DisplayPort to DVI Cable",null,null,null,450]
[null,450,23,"Intel","EXPI9402PTBLK-1PK","PRO/1000 PF Dual Port Server Adapter 10/ 100/ 1000Mbps PCI-Express 2 x RJ45 (Avid qualified)",null,null,null,451]
[null,451,null,"''","","Software",null,null,null,452]
[null,452,23,"Applied Computer Systems","SoftLink","Classroom Computer Control Software for Student Screen Sharing (PC)",null,null,null,453]
["OFE",453,23,"Adobe","61101764","Creative Cloud Subscription Student & Teacher Edition",null,null,null,454]
[null,454,23,"Avid","9935-65903-00","Pro Tools 12 Software for Students/Teachers Annual Subscription (boxed)",null,null,null,455]
[null,455,23,"Audacity","Audacity 2.0.5","Free audio editor and recorder easy to use for Windows, Mac OS X, GNU / Linux and other operating systems","Freeware",null,null,456]
[null,456,23,"Tableau","TableauPublic","Free Interactive Web Design and Publishing Software","Freeware",null,null,457]
[null,457,23,"GetGimp.Com","GIMP","Free Image Editing Software from photo touch-up, color correction, channel mixing, digital retouching, and image file translation","Freeware",null,null,458]
[null,458,23,"VideoLAN","VLC-MediaPlayer","Free Player Software for play all types of videos such as MP4, FLAC, MP3, OOG, and WMV","Freeware",null,null,459]
[null,459,null,"","","NEWSROOM",null,null,null,460]
[null,460,null,"'","","Workstations",null,null,null,461]
[null,461,null,"''","","NLE Workstations",null,null,null,462]
["OFE",462,6,"Apple","Z0PE","21.5-inch iMac Including:\n- 2.9GHz Quad-core Intel Core i5, Turbo Boost up to 3.6GHz\n- 16GB 1600MHz DDR3 SDRAM - 2X8GB\n- 512GB Flash Storage\n- NVIDIA GeForce GT 750M 1GB GDDR5\n- Apple Magic Mouse\n- Apple Wireless Keyboard (English) & User's Guide\n- Accessory Kit\n- Software: Pages, Numbers, Keynote, iPhoto, iMovie, GarageBand, OS X",null,null,null,463]
[null,463,13,"Apple","Z0RS","21.5-inch iMac with Retina 4K display Including:\n3.3GHz quad-core Intel Core i7, Turbo Boost up to 3.8GHz\n16GB 1867MHz LPDDR3\n512GB Flash Storage\nIntel Iris Pro Graphics 6200\nWired Apple Mouse\nApple Keyboard with Numeric Keypad (English) & User’s Guide\nAccessory Kit\nSoftware\nPages, Numbers, Keynote, Photos, iMovie, GarageBand, OS X",null,null,null,464]
[null,464,19,"Apple","MD006LL/A","AppleCare Protection Plan for iMac",null,null,null,465]
[null,465,null,"''","","Software",null,null,null,466]
[null,466,19,"Applied Computer Systems","SoftLink","Classroom Computer Control Software for Student Screen Sharing (Mac)",null,null,null,467]
[" ",467,19,"Parallels","PDFML-SL220-EN","Parallels Desktop for Mac Student License - Includes Free USB Flash Drive",null,null,null,468]
["OFE",468,19,"Adobe","61101764","Creative Cloud Subscription Student & Teacher Edition",null,null,null,469]
["OFE",469,19,"Audacity","Audacity 2.0.5","Free audio editor and recorder easy to use for Windows, Mac OS X, GNU / Linux and other operating systems","Freeware",null,null,470]
["OFE",470,19,"Tableau","TableauPublic","Free Interactive Web Design and Publishing Software","Freeware",null,null,471]
["OFE",471,19,"GetGimp.Com","GIMP","Free Image Editing Software from photo touch-up, color correction, channel mixing, digital retouching, and image file translation","Freeware",null,null,472]
["OFE",472,19,"VideoLAN","VLC-MediaPlayer","Free Player Software for play all types of videos such as MP4, FLAC, MP3, OOG, and WMV","Freeware",null,null,473]
[null,473,null,"'","","Instructional Support",null,null,null,474]
[null,474,null,"''","","News Feed \"Eye Candy\"",null,null,null,475]
[null,475,6,"Samsung","DM32E","DM-E Series 32\" Slim Direct-Lit LED Display",null,null,null,476]
[null,476,6,"Peerless Industries","ST640","Security SmartMount Universal Tilt Mount for 23-Inch - 46-Inch LCD Screens",null,null,null,477]
[null,477,6,"BTX Technologies ","BTX-HD4003","High Speed HDMI Cable, Swivel,3'","STB > TV",null,null,478]
[null,478,6,"BTX Technologies","  YD-603BK","Cat 5e Assembly, colored cable with matching boot, 3 feet, Black","TV > Plate",null,null,479]
[null,479,null,"''","","Monitoring Systems",null,null,null,480]
["OFE",480,1,"Panasonic","PT-RW330","1-Chip Solid Shine Series DLP Projector",null,null,null,481]
["OFE",481,1,"Extron","60-1271-13","(DTP HDMI 4K 230 Rx) HDMI Twisted Pair Receiver - 230 feet (70 m)",null,null,null,482]
["OFE",482,1,"Peerless Industries","PPA","Peerless Pro Universal Projector Ceiling/Wall Mount, 12.8-Inch-17.3-Inch Adjustable Extension",null,null,null,483]
["OFE",483,1,"Draper","ACCESS FIT V","115.2\"x72\" (16:10) Image Size Access Series V motorized, OptiFlex tensioned, ReAct MS1000V Projection Screen with 12\" Black Top Border, 137\" White Case Ceiling Pocket (with flanges), 115v Motor (hook up left) with Built-In LVC-IV Controller, and LVC-S control station",null,null,null,484]
["OFE",484,1,"Draper","SS-1R","Standard Up/Down Screen Control Switch, 115v","included",null,null,485]
["OFE",485,2,"Yamaha","MSP7 Studio ","80W LF/50W HF, Bi-amped 6.5\" Powered Monitor with Magnetic Shielding (each)  (Single)",null,null,null,486]
["OFE",486,2,"Yamaha","BWS20-190","Ceiling/Wall Speaker Mount Bracket",null,null,null,487]
["OFE",487,9,"JBL","CONTROL 26C","6.5\" Coaxial Ceiling Speaker (2 per carton)",null,null,null,488]
["OFE",488,1,"JBL","CSA1120Z","70v Audio Amplifier (1x120W) ",null,null,null,489]
[null,489,null,"''","","Video Conferencing",null,null,null,490]
["OFE",490,1,"Magwell","XI-100-D-USB-HDMI","USB 3.0 Capture Dongle",null,null,null,491]
["OFE",491,1,"StarTech","HDMM30MAO","30m Active Fiber Optic AOC High Speed HDMI Male/Male",null,null,null,492]
["OFE",492,1,"Panasonic","AWHE2PJ","The AW-HE2 is the first all digital Panasonic HD/SD pan-tilt camera with no moving parts. The HE2 provides  a 2X zoom and pan-tilt with control from the AWRP50,  AWRM50,  AW-RP120 and other remote systems  via IP. HD Audio/Vido Output modes include HDMI and USB (MS LYNC and Skype compatible.) SD resolution streaming video is also available via IP for IP-Live preview, control,  and capture.  HDMI output includes  1080/59.94p, 1080/59.94i and 720/59.94p, or 480/59.94p. An A.C. power supply included, but the HE2 can also be USB powered. The camera can be positioned  using the included  stand/ceiling mount or with a variety of optional ¼-20 mounts.",null,null,null,493]
["OFE",493,1,"Yamaha","PJP-20UR","Web Conference Microphone Speaker with a built-in high performance echo Canceller",null,null,null,494]
["OFE",494,2,"StarTech","HDMIPLATE","Single Outlet Female HDMI® Wall Plate White",null,null,null,495]
["OFE",495,1,"StarTech","HDMIMM1","1-Feet High Speed HDMI Cable - HDMI - M/M",null,null,null,496]
["OFE",496,1,"StarTech","HDMIMM6","6-Feet High Speed HDMI Cable - HDMI - M/M",null,null,null,497]
[null,497,null,"''","","Presentation Support",null,null,null,498]
["OFE",498,1,"Extron","60-1508-01","ShareLink 200 - Wireless Collaboration Gateway - with WAP",null,null,null,499]
["OFE",499,1,"Extron","60-1457-01","(IN1604 DTP) Four Input HDCP-Compliant Scaler with DTP Extension",null,null,null,500]
["OFE",500,1,"Extron","60-1251-20","(HRU 109) 1U Universal Half Rack Shelf Kit",null,null,null,501]
["OFE",501,1,"Middle Atlantic Products","PDLT-815RV-RN","Rackmount Power/Lighting, 8 Outlet, 15A, 2-Stage Surge",null,null,null,502]
["OFE",502,1,"Middle Atlantic Products","RK4","4-Space Rack, 16\" Deep",null,null,null,503]
[null,503,null,"","","JOURNALISM LAB",null,null,null,504]
[null,504,null,"'","","Workstations",null,null,null,505]
[null,505,null,"''","","NLE Workstations",null,null,null,506]
["OFE",506,22,"Apple","Z0PE","21.5-inch iMac Including:\n- 2.9GHz Quad-core Intel Core i5, Turbo Boost up to 3.6GHz\n- 16GB 1600MHz DDR3 SDRAM - 2X8GB\n- 512GB Flash Storage\n- NVIDIA GeForce GT 750M 1GB GDDR5\n- Apple Magic Mouse\n- Apple Wireless Keyboard (English) & User's Guide\n- Accessory Kit\n- Software: Pages, Numbers, Keynote, iPhoto, iMovie, GarageBand, OS X",null,null,null,507]
[null,507,null,"''","","Software",null,null,null,508]
[null,508,22,"Applied Computer Systems","SoftLink","Classroom Computer Control Software for Student Screen Sharing (Mac)",null,null,null,509]
["OFE",509,22,"Adobe","61101764","Creative Cloud Subscription Student & Teacher Edition",null,null,null,510]
[null,510,22,"Audacity","Audacity 2.0.5","Free audio editor and recorder easy to use for Windows, Mac OS X, GNU / Linux and other operating systems","Freeware",null,null,511]
[null,511,22,"Tableau","TableauPublic","Free Interactive Web Design and Publishing Software","Freeware",null,null,512]
[null,512,22,"GetGimp.Com","GIMP","Free Image Editing Software from photo touch-up, color correction, channel mixing, digital retouching, and image file translation","Freeware",null,null,513]
[null,513,22,"VideoLAN","VLC-MediaPlayer","Free Player Software for play all types of videos such as MP4, FLAC, MP3, OOG, and WMV","Freeware",null,null,514]
[null,514,null,"","","COMMON AREA SUPPORT",null,null,null,515]
[null,515,null,"'",""," 1st Floor A/V Support",null,null,null,516]
[null,516,null,"''","","Main Entrance Display",null,null,null,517]
["ALT",517,1,"Samsung","OH55D","OHD Series - 55\" LED display","Add-Altenate",null,null,518]
["ALT",518,1,"Samsung","P-LM-2N1X57A","Protection Plus Fast Track - extended service agreement - 5 years","Add-Altenate",null,null,519]
["ALT",519,1,"Peerless Industries","ST670","Security SmartMount Universal Tilt Mount for 42-Inch - 71-Inch Flat Panel Screens","Add-Altenate",null,null,520]
["ALT",520,1,"BTX Technologies ","YV-603FFPB","\"F\"(m)-\"F\"(m) Hook-Up Assy, 3'","Add-Altenate",null,null,521]
["ALT",521,1,"BTX Technologies","  YD-603BK","Cat 5e Assembly, colored cable with matching boot, 3 feet, Black","Add-Altenate",null,null,522]
["ALT",522,1,"Cables To Go","50628","High Speed HDMI Cable with Ethernet - In-Wall CL2-Rated","Add-Altenate",null,null,523]
["ALT",523,1,"iCompel","ICKS-VE-KU-N","K Series VESA Digital Signage Kiosk Player. Supports HTML, XML, RSS, MPEG, AVI, QuickTime®, and PowerPoint® media*; JPEG, GIF, and TIFF images; and WAV and MP3 audio","Add-Altenate",null,null,524]
[null,524,null,"''","","1st Floor Collaboration Areas",null,null,null,525]
[null,525,4,"Samsung","DM55E","DM55E 55IN PRO LED LCD DISP HDTV TAA"," ",null,null,526]
[" ",526,4,"Peerless Industries","ST670","Security SmartMount Universal Tilt Mount for 42-Inch - 71-Inch Flat Panel Screens",null,null,null,527]
[" ",527,4,"BTX Technologies ","YV-603FFPB","\"F\"(m)-\"F\"(m) Hook-Up Assy, 3'","TV > Plate",null,null,528]
[null,528,4,"BTX Technologies","  YD-603BK","Cat 5e Assembly, colored cable with matching boot, 3 feet, Black","TV > Plate",null,null,529]
[" ",529,2,"Extron","60-1371-11","(WPB 109) One-Gang Wallplate with Computer Video, HDMI, and Stereo Audio Connectors - Black",null,null,null,530]
[" ",530,2,"Extron","70-519-12","(MR 100) One-Gang Mud Ring - White",null,null,null,531]
[" ",531,4,"Cables To Go","50628","High Speed HDMI Cable with Ethernet - In-Wall CL2-Rated",null,null,null,532]
[null,532,2,"Cables To Go","50226","10Ft Select Vga + 3.5Mm Stereo Audio A/V Cable M/M - In-Wall Cmg-Rated-2Pack",null,null,null,533]
[null,533,4,"iCompel","ICKS-VE-KU-N","K Series VESA Digital Signage Kiosk Player. Supports HTML, XML, RSS, MPEG, AVI, QuickTime®, and PowerPoint® media*; JPEG, GIF, and TIFF images; and WAV and MP3 audio","placehodler",null,null,534]
[null,534,null,"''","","(2) Instructor Offices",null,null,null,535]
[null,535,2,"Samsung","DM48E","Full HD Slim Direct-LED-Backlit Commercial LCD Display (48\")",null,null,null,536]
[" ",536,2,"Peerless Industries","ST670","Security SmartMount Universal Tilt Mount for 42-Inch - 71-Inch Flat Panel Screens",null,null,null,537]
[" ",537,2,"BTX Technologies ","YV-603FFPB","\"F\"(m)-\"F\"(m) Hook-Up Assy, 3'","TV > Plate",null,null,538]
[null,538,2,"BTX Technologies","  YD-603BK","Cat 5e Assembly, colored cable with matching boot, 3 feet, Black","TV > Plate",null,null,539]
[" ",539,2,"Extron","60-1371-11","(WPB 109) One-Gang Wallplate with Computer Video, HDMI, and Stereo Audio Connectors - Black",null,null,null,540]
[" ",540,2,"Extron","70-519-12","(MR 100) One-Gang Mud Ring - Black",null,null,null,541]
[" ",541,2,"Cables To Go","50628","High Speed HDMI Cable with Ethernet - In-Wall CL2-Rated",null,null,null,542]
[null,542,1,"Cables To Go","50226","10Ft Select Vga + 3.5Mm Stereo Audio A/V Cable M/M - In-Wall Cmg-Rated-2Pack",null,null,null,543]
[null,543,2,"iCompel","ICKS-VE-KU-N","K Series VESA Digital Signage Kiosk Player. Supports HTML, XML, RSS, MPEG, AVI, QuickTime®, and PowerPoint® media*; JPEG, GIF, and TIFF images; and WAV and MP3 audio","placehodler",null,null,544]
[null,544,2,"Dell","210-AEZQ","Precision Tower 7810 XL Enhanced NLE Workstation Grade PC Including: 64GB (4x16G) 2133MHz DDR4 RD|MM ECC memory, Intel Xeon E5-2697v3 processor,  Nvidia K5200 8GB display card, 3.5 inch 2TB C12 7,200RPM SATA Drive, and MWSU Standard Load",null,null,null,545]
[null,545,2,"Intel","EXPI9402PTBLK-1PK","PRO/1000 PF Dual Port Server Adapter 10/ 100/ 1000Mbps PCI-Express 2 x RJ45 (Avid qualified)",null,null,null,546]
[null,546,4,"Dell","P2217H","P2217H 21.5IN LED LCD MON 16:9 320-9791",null,null,null,547]
[null,547,4,"StarTech","DP2DVI2MM6","6 ft. DisplayPort to DVI Cable",null,null,null,548]
["OFE",548,2,"Adobe","61101764","Creative Cloud Subscription Student & Teacher Edition",null,null,null,549]
[null,549,2,"Avid","9935-65903-00","Pro Tools 12 Software for Students/Teachers Annual Subscription (boxed)",null,null,null,550]
[null,550,2,"Audacity","Audacity 2.0.5","Free audio editor and recorder easy to use for Windows, Mac OS X, GNU / Linux and other operating systems","Freeware",null,null,551]
[null,551,2,"Tableau","TableauPublic","Free Interactive Web Design and Publishing Software","Freeware",null,null,552]
[null,552,2,"GetGimp.Com","GIMP","Free Image Editing Software from photo touch-up, color correction, channel mixing, digital retouching, and image file translation","Freeware",null,null,553]
[null,553,2,"VideoLAN","VLC-MediaPlayer","Free Player Software for play all types of videos such as MP4, FLAC, MP3, OOG, and WMV","Freeware",null,null,554]
[null,554,null,"'","","2nd Floor A/V Support",null,null,null,555]
[null,555,null,"''","","2nd Floor Collaboration Areas",null,null,null,556]
[null,556,1,"Samsung","DM55E","DM55E 55IN PRO LED LCD DISP HDTV TAA"," ",null,null,557]
[" ",557,1,"Peerless Industries","ST670","Security SmartMount Universal Tilt Mount for 42-Inch - 71-Inch Flat Panel Screens",null,null,null,558]
[" ",558,1,"BTX Technologies ","YV-603FFPB","\"F\"(m)-\"F\"(m) Hook-Up Assy, 3'","TV > Plate",null,null,559]
[null,559,1,"BTX Technologies ","BTX-HD4003","High Speed HDMI Cable, Swivel,3'","STB > TV",null,null,560]
[null,560,1,"BTX Technologies","  YD-603BK","Cat 5e Assembly, colored cable with matching boot, 3 feet, Black","TV > Plate",null,null,561]
[" ",561,1,"Extron","60-1371-11","(WPB 109) One-Gang Wallplate with Computer Video, HDMI, and Stereo Audio Connectors - Black",null,null,null,562]
[" ",562,1,"Extron","70-519-12","(MR 100) One-Gang Mud Ring - Black",null,null,null,563]
[" ",563,1,"Cables To Go","50628","High Speed HDMI Cable with Ethernet - In-Wall CL2-Rated",null,null,null,564]
[null,564,1,"Cables To Go","50226","10Ft Select Vga + 3.5Mm Stereo Audio A/V Cable M/M - In-Wall Cmg-Rated-2Pack",null,null,null,565]
[null,565,1,"iCompel","ICKS-VE-KU-N","K Series VESA Digital Signage Kiosk Player. Supports HTML, XML, RSS, MPEG, AVI, QuickTime®, and PowerPoint® media*; JPEG, GIF, and TIFF images; and WAV and MP3 audio","placehodler",null,null,566]
[null,566,null,"''","","2nd Floor Conference Room",null,null,null,567]
[null,567,1,"Samsung","DM55E","DM55E 55IN PRO LED LCD DISP HDTV TAA"," ",null,null,568]
[" ",568,1,"Peerless Industries","ST670","Security SmartMount Universal Tilt Mount for 42-Inch - 71-Inch Flat Panel Screens",null,null,null,569]
[" ",569,1,"BTX Technologies ","YV-603FFPB","\"F\"(m)-\"F\"(m) Hook-Up Assy, 3'","TV > Plate",null,null,570]
[null,570,1,"BTX Technologies ","BTX-HD4003","High Speed HDMI Cable, Swivel,3'","STB > TV",null,null,571]
[null,571,1,"BTX Technologies","  YD-603BK","Cat 5e Assembly, colored cable with matching boot, 3 feet, Black","TV > Plate",null,null,572]
[" ",572,1,"Extron","60-1371-11","(WPB 109) One-Gang Wallplate with Computer Video, HDMI, and Stereo Audio Connectors - Black",null,null,null,573]
[" ",573,1,"Extron","70-519-12","(MR 100) One-Gang Mud Ring - Black",null,null,null,574]
[" ",574,2,"Cables To Go","50628","High Speed HDMI Cable with Ethernet - In-Wall CL2-Rated",null,null,null,575]
[null,575,2,"Cables To Go","50226","10Ft Select Vga + 3.5Mm Stereo Audio A/V Cable M/M - In-Wall Cmg-Rated-2Pack",null,null,null,576]
[null,576,1,"iCompel","ICKS-VE-KU-N","K Series VESA Digital Signage Kiosk Player. Supports HTML, XML, RSS, MPEG, AVI, QuickTime®, and PowerPoint® media*; JPEG, GIF, and TIFF images; and WAV and MP3 audio","placehodler",null,null,577]
["OFE",577,1,"Extron","60-1508-01","ShareLink 200 - Wireless Collaboration Gateway - with WAP",null,null,null,578]
[null,578,2,"Yamaha","MSP7 Studio ","80W LF/50W HF, Bi-amped 6.5\" Powered Monitor with Magnetic Shielding (each)  (Single)",null,null,null,579]
[null,579,2,"Yamaha","BWS20-190","Ceiling/Wall Speaker Mount Bracket",null,null,null,580]
[null,580,null,"",null,"FIELD KITS",null,null,null,581]
[null,581,null,"'",null,"ENG Field Camera Packages",null,null,null,582]
[null,582,null,"''",null,"Camcorders",null,null,null,583]
[null,583,6,"Sony","PXW-X180","Full HD XDCAM Handheld Camcorder Including:\n-Three 1/3\" Exmor CMOS Sensors\n-XAVC Intra and Long GOP Codecs\n-MPEG HD 422, AVCHD, & DV Codecs\n-G Lens with 25x Optical Zoom\n-Electronic Variable ND Filter\n-Dual SxS Memory Card Slots\n-3G/HD-SDI & HDMI Output\n-MP4 Proxy Recording to SD Card\n-0.5\" OLED Viewfinder\n-Wi-Fi Remote Control via Included Module",null,null,null,584]
[null,584,6,"Sonnet","SD-SXS-E34","SDHC Adapter for SxS Camera Slot",null,null,null,585]
[null,585,12,"Watson","BP-U90","Lithium-Ion Battery Pack (14.4V, 7800mAh)",null,null,null,586]
[null,586,6,"Watson","D-4231 ","Duo LCD Charger for BP-U Series Batteries",null,null,null,587]
[null,587,4,"Panasonic","AG-DVX200PJ","4K Handheld Camcorder with Four Thirds Sensor and Integrated Zoom Lens Including:\n-Single 4/3 MOS Sensor with 12 Stops DR\n-DCI 4K 24P, UHD 4K Up to 60p\n-Variable Frame Rate Up to 120 FPS in FHD\n-MP4 / MOV Recording in 4K\n-Integrated Leica 13x f/2.8 - f/4.5 Lens\n-3 x Individual Lens Control Rings\n-2 x SD Cards Slots (U3 Compatible)\n-HDMI 2.0, 3G-SDI Output",null,null,null,588]
[null,588,2,"Panasonic","H-HS12035 ","Lumix G X Vario 12-35mm F2.8 ASPH Power O.I.S. Lens",null,null,null,589]
[null,589,8,"IDX System Technology","SL-VBD96","7.2V Li-Ion Battery for Panasonic Cameras",null,null,null,590]
[null,590,4,"IDX System Technology","LC-2A","2-Channel Charger for Panasonic, Canon, & Sony Batteries (7.2V/7.4V)",null,null,null,591]
[null,591,null,"''",null,"Camera Support",null,null,null,592]
[null,592,10,"Manfrotto","MVH500AH,755XBK","Fluid Head & 755XB Tripod with Carrying Bag",null,null,null,593]
[null,593,10,"Photoflex","DL1352WS","Litedisc 52\" Circular Collapsable Disc Reflector, White / Silver",null,null,null,594]
[null,594,10,"CamRade","CAM-R&GBACKP-LARGE","Run & Gun Backpack (Large)",null,null,null,595]
[null,595,null,"''","","Audio Support",null,null,null,596]
[" ",596,10,"Sony","ECM44B","Electret Condenser Lavalier Microphone",null,null,null,597]
[" ",597,1,"Sony","SADH44B","Horizontal Single-Clip 10-Pack",null,null,null,598]
[" ",598,1,"Sony","ADR44B","Wind Screen 10-Pack",null,null,null,599]
[null,599,10,"Audio Technica","ATH-M30X ","Professional Monitor Headphones, 96dB, 15-20kHz, Black",null,null,null,600]
[null,600,10,"Belkin","F8Z605CW","Mic with Remote for iPhone","headphone adaptor",null,null,601]
[null,601,10,"CablesOnline","AV-Y01F3","3.5mm (1/8\") TRS Male Plug to 3x Female Stereo Audio Splitter","camcorder/phone",null,null,602]
[null,602,10,"Rode","BOOMPOLE","Rode Boompole For Extension Of Shotgun Microphones ",null,null,null,603]
[null,603,null,"''","","IP Link",null,null,null,604]
[null,604,1,"Dell","Precision 7710","Precision Laptop with 17\" display Including:\n-i7-4810MQ Quad-Core 2.8GHz Processor\n16GB (2x8GB) 1600MHz DDR3L RAM\n-Nvidia Quadro K2200M video card with 2GB GDDR5\n-(2) 1TB 2.5\" SATA 7,200RPM HDD\n-8x DVD+/-RW Drive\n- Intel Dual-Band Wireless-AC 7260 Bluetooth Card\n-Windows-7, MS-Office \n(as per MWSU specification)",null,null,null,605]
[null,605,1,"Telestream","WC6PRO-W","Wirecast Pro 6 for Windows Including:\n-Unlimited Number of Input Sources\n-Input Web/Network Feeds as Sources\n-Use iOS 8 Device Camera as Video Source\n-Supports a Wide Range of Cameras\n-Capture & Broadcast Your Desktop Screen\n-Full HD Live Streaming\n-x264 / H.264 / Windows Media Encoding\n-Live Compositing with Multiple Layers\n-Transitions, Titles, Chroma Key\n-Works with Blackmagic, Teradek, and More",null,null,null,606]
[null,606,1,"Magewell","XI-100-D-USB-HDMI","HDMI USB 3.0 Capture Dongle ",null,null,null,607]
[null,607,null,"'",null,"DSLR Field Camera Packages",null,null,null,608]
[null,608,null,"''",null,"Cameras",null,null,null,609]
[null,609,2,"Panasonic","H-HS12035 ","Lumix G X Vario 12-35mm f/2.8 Asph. Lens for Micro 4/3 (Black)",null,null,null,610]
[null,610,2,"Tiffen","58CP","58mm Circular Polarizing Filter ",null,null,null,611]
[null,611,2,"Tiffen","58VND","58mm Variable Neutral Density Filter ",null,null,null,612]
[null,612,2,"Ruggard","FPB-142B","Four Pocket Filter Pouch (Up to 67mm) ",null,null,null,613]
[null,613,2,"Rode","WS6","Deluxe Windshield for the NTG2, NTG1, NTG4 and NTG 4+ Microphones ",null,null,null,614]
[null,614,2,"Rode","BOOMPOLE","Boompole for Rode NTG1, NTG2 and Video Mic (10’) ",null,null,null,615]
[null,615,2,"Kopul","M4020","Studio Elite 4000 Series XLR M to XLR F Microphone Cable (20’) ",null,null,null,616]
[null,616,2,"Tascam","DR-60DmkII","4-Channel Portable Recorder w/ Rode NTG2 Condenser Shotgun Mic Kit ",null,null,null,617]
[null,617,2,"Ruggard","PBB-145B","Outrigger 45 Backpack",null,null,null,618]
[null,618,2,"General Brand","CCK-5","Lens Cleaning Kit ",null,null,null,619]
[null,619,2,"Panasonic","H-HS35100","35-100mm f/2.8 Lumix G Vario Zoom Lens ",null,null,null,620]
[null,620,2,"Panasonic","DMW-BLF19","Rechargeable Lithium-ion Battery Pack ",null,null,null,621]
[null,621,2,"Panasonic","DMC-GH4 ","Lumix Mirrorless Micro Four Thirds Digital Camera (body only) ",null,null,null,622]
[null,622,2,"Manfrotto","MVH500A","Fluid Drag Video Head with MVT502AM Tripod and Carry Bag ",null,null,null,623]
[null,623,null,"'",null,"Shared Accessories",null,null,null,624]
[null,624,null,"''","","Audio Accessories",null,null,null,625]
[null,625,2,"Zoom","ZOH6OCP","H6 Handy Recorder On-Camera Package Kit Including:\n- Zoom H6 Handy Recorder\n- Zoom SSH-6 Stereo Shotgun Capsule\n- Recorder Remote Control\n- Camera Mount\n- Line-to-Microphone Attenuator Cable\n- For Filmaking and ENG",null,null,null,626]
[null,626,2,"SKB","3I-1209-4-H6B","Injection Molded Case for Zoom H6 Recorder with Shotgun Microphone Slot",null,null,null,627]
[null,627,2,"Sennheiser","EW100ENGG3-A","ew 100 ENG G3 Wireless Microphone Combo System - A (516-558 MHz)",null,null,null,628]
[null,628,2,"Rode","RONTG2BK2","NTG2 Complete Shotgun Microphone HDSLR Kit Including:\n- Shotgun Microphone\n- Shock Mount\n- Windshield\n- Boompole\n- Universal Hand Grip\n- Cables\n- Matching Transformer Cable\n- XLR or 3.5mm Input\n- Neoprene Boompole Bag",null,null,null,629]
[null,629,2,"Lectrosonics","IFBT4 BLK","Ifb Tx Base Station Type Digital Hybrid",null,null,null,630]
[null,630,2,"Lectrosonics","IFBR1A BLK","Belt Pack Receiver W/ Pouch; New Styl",null,null,null,631]
[null,631,2,"Lectrosonics","BEZELKITR1A","Kit, Belt Clip, Bezel Door for IFBR1A Rcvr",null,null,null,632]
[null,632,2,"RTS/Telex","F.01U.118.418","CES-1 Complete Talent Earset With 1/4 Inch Plug",null,null,null,633]
[null,633,null,"''","","Lighting Packages",null,null,null,634]
[null,634,2,"ikan","IBK23150-V3","Bi-Color 1x IB508-v2, 2x iLED312-v2 Interview Kit Including:\n(2) iLED 312-v2 Bi-Color LED Lights\n(1) IB508-v2 Bi-Color LED Light\n(3) Dual Battery Chargers\n(6) Sony L-Type Batteries\n(3) Power Supplies\n(3) Compact Light Stands\n(3) Stand Adapter\n(1) Kit Bag",null,null,null,635]
[null,635,2,"ikan","iLED6-2PT-KIT","iLED6 2-Point Kit Including:\n- Barn doors with Tungsten Gel and Diffuser Gel\n- Uses Industry Standard Sony L Series Batteries\n- Adjusts from Spot to Flood\n- Easy to Access Rotary Knob for Dimming Control\n- Daylight color temperature\n- Includes Stands and Bag",null,null,null,636]
[null,636,2,"ikan","ELE-FLWCAM","Flyweight Camcorder Shoulder Rig Including:\n- Vertical and Lateral Adjustability\n- Easy To Use and Assemble\n- Lightweight Shoulder Pad System\n- Large Adjustable Baseplate\n- Heavy-Duty Textured, Rubber Grips\n- Accommodates Midsize Camcorders",null,null,null,637]
[null,null,null,null,null,null,null,null,null,638]
[null,null,null,null,null,null,null,null,null,639]
[null,null,null,null,null,null,"GRAND TOTAL MANUFACTURER LIST \"RETAIL\" PRICE (NO DISCOUNTS APPLIED)",null,null,640]

{"sheet":"PurchData","index":3,"n_rows":21,"n_cols":9,"rows_kept":21,"cut":false,"hidden":true,"merged":[]}
["Print tagged items only? (1 = YES, 2 = NO)",1,null,"Clear Tags?",true]
[]
["Field Name:","ROOM","ITEM #","QTY","MFG","MODEL","DESCRIPTION","TAG","BUDGETED TSG\nUNIT COST"]
["First line of data extracted from Schedule -->","A-01-CER",3,null,null,null,null,null,0]
["Field Name & Selection Criteria (below)","A-01-CER",4,null,null,null,null,null,0]
["TAG","A-01-CER",5,null,null,null,null,null,0]
["<>","A-01-CER",6,null,null,null,null,null,0]
[null,"A-01-CER",7,null,null,null,null,null,0]
[null,"A-01-CER",8,null,null,null,null,null,0]
[null,"A-01-CER",9,null,null,null,null,null,0]
[null,"A-01-CER",10,null,null,null,null,null,0]
[null,"A-01-CER",11,null,null,null,null,null,0]
[null,"A-01-CER",12,null,null,null,null,null,0]
[null,"A-01-CER",13,null,null,null,null,null,0]
[null,"A-01-CER",14,null,null,null,null,null,0]
[null,"A-01-CER",15,null,null,null,null,null,0]
[null,"A-01-CER",16,null,null,null,null,null,0]
[null,"A-01-CER",17,null,null,null,null,null,0]
[null,"A-01-CER",18,null,null,null,null,null,0]
[null,"A-01-CER",19,null,null,null,null,null,0]
[null,"A-01-CER",20,null,null,null,null,null,0]

{"sheet":"Cheat Sheet","index":4,"n_rows":22,"n_cols":35,"rows_kept":22,"cut":false,"hidden":true,"merged":[]}
[null,"(THIS SHEET IS FOR DEVELOPER USE ONLY)",null,null,null,null,null,null,null,null,null,null,null,null,"WARNING: Press F9 to update totals!",null,null,null,null,null,null,null,null,null,null,null,null,"WARNING: Press F9 to update totals!"]
["A","B","C","D","E","F","G","H","I","J","K","L","M","N","O","P","Q","R","S","T","U","V","W","X","Y","Z","AA","AB","AC","AD","AE","AF","AG","AH","AI"]
[1,"2","3","4","5","6","7","8","9","10","11","12","13","14","15","16","17","18","19","20","21","22","23","24","25","26","27","28","29","30","31","32","33","34","35"]
["TAG","SUB\nSYSTEM","VENDOR","TSG PO #","ROOM","ITEM #","QTY","MFG","MODEL","DESCRIPTION","FUNCTION","UNIT LIST","EXT. LIST","ACTUAL TSG\nUNIT COST","ACTUAL TSG EXT. COST","BUDGETED TSG\nUNIT COST","BUDGETED TSG EXT. COST","TSG DEALER\nDISCOUNT","TSG  MARGIN","CLIENT\nUNIT PRICE","CLIENT\nEXT. PRICE","EST. DELIV. DATE","LOCATION / RACK #","LAST REC'D DATE","SERIAL\nNUMBERS","REC'D QTY.","BACK ORDER QTY.","NOTES","PREV. QTY.","LATEST ADDITION","LATEST DELETION","LAST CHANGE","ACTUAL VS. BUDGET FOR REC'D EQPT.","TOTAL ACTUAL COST OF RECEIVED EQPT.","END OF SORT RANGE"]
["DWG #","VENDOR","TSG PO #","ROOM","ITEM #","QTY","MFG","MODEL","DESCRIPTION","FUNCTION","EST'D DELIV","ACTUAL\nUNIT COST","ACTUAL\nEXT. COST","UNIT LIST","EXT. LIST","BUDGET\nUNIT COST","BUDGET\nEXT. COST","DEAL\nDISCOUNT","TSG  MARGIN","CLIENT\nUNIT PRICE","CLIENT\nEXT. PRICE","LOCATION / RACK #","DATE\nRECEIVED","SERIAL\nNUMBERS","QUAN.\nRECEIVED","BACK ORDERED","NOTES","PREVIOUS\nQUAN.","LATEST ADDITION","LATEST DELETION","LAST CHANGE","ACTUAL VS. BUDGET FOR RECV'D EQPT.","TOTAL COST OF  RECEIVED EQPT.","END OF SORT RANGE"]
[null,null,null,"A-",0,null,null,null,null,null,null,null,{"$f":"L6*F6","v":0},null,{"$f":"SUM(N6*F6)","v":0},null,{"$f":"SUM(P6*F6)","v":0},{"$f":" (N6-P6) /N6","v":{"$error":"#DIV/0!"}},0.05,{"$f":"P6+( S6*P6)","v":0},{"$f":"T6*F6","v":0},null,null,null,null,"0"]
[null,null,null,"A-",1,null,null,null,"\"ROOM TITLE\"",null,null,null,0,null,0,null,0,{"$error":"#DIV/0!"},0.05,0,0,null,null,null,null,"0"]
[null,null,null,"A-",2,null,null,null,null,null,null,null,0,null,0,null,0,{"$error":"#DIV/0!"},0.05,0,0,null,null,null,null,"0"]
[null,null,null,"A-",3,null,null,null,null,null,null,null,0,null,0,null,0,{"$error":"#DIV/0!"},0.05,0,0,null,null,null,null,"0"]
[null,null,null,"A-",4,null,null,null,null,null,null,null,0,null,0,null,0,{"$error":"#DIV/0!"},0.05,0,0,null,null,null,null,"0"]
[null,null,null,"A-",5,null,null,null,null,null,null,null,0,null,0,null,0,{"$error":"#DIV/0!"},0.05,0,0,null,null,null,null,"0"]
[null,null,null,"A-",6,null,null,null,null,null,null,null,0,null,0,null,0,{"$error":"#DIV/0!"},0.05,0,0,null,null,null,null,"0"]
[null,null,null,"A-",7,null,null,null,null,null,null,null,0,null,0,null,0,{"$error":"#DIV/0!"},0.05,0,0,null,null,null,null,"0"]
[null,null,null,"A-",8,null,null,null,null,null,null,null,0,null,0,null,0,{"$error":"#DIV/0!"},0.05,0,0,null,null,null,null,"0"]
[null,null,null,"B-",0,null,null,null,"\"ROOM TITLE\"",null,null,null,0,null,0,null,0,{"$error":"#DIV/0!"},0.05,0,0,null,null,null,null,"0"]
[null,null,null,"B-",1,null,null,null,null,null,null,null,0,null,0,null,0,{"$error":"#DIV/0!"},0.05,0,0,null,null,null,null,"0"]
[null,null,null,"B-",2,null,null,null,null,null,null,null,0,null,0,null,0,{"$error":"#DIV/0!"},0.05,0,0,null,null,null,null,"0"]
[null,null,null,null,null,null,null,null,null,null,null,null,0,null,0,null,0,{"$error":"#DIV/0!"},0.05,0,0,null,null,null,null,"0"]
[null,null,null,null,null,null,null,null,null,null,null,null,null,null,{"$f":"N19*F19","v":0},null,{"$f":"P19*F19","v":0},{"$f":"IF(N19>0, 1-P19/N19, \"N/A\")","v":"N/A"},0.1,{"$f":"ROUND(P19*(1+S19),0)","v":0},0]
[null,null,"",null,null,null,null,""]
[null,null,"",null,null,null,null,"","GRAND TOTAL ALL ABOVE EQUIPMENT ROOMS",null,null,null,{"$f":"SUM(M6:M20)","v":0},null,{"$f":"SUM(O6:O20)","v":0},null,{"$f":"SUM(Q6:Q20)","v":0},null,null,null,{"$f":"SUM(U6:U20)","v":0}]
["END OF SORT RANGE (& PRINT AREA) - INSERT ROWS ABOVE THE GRAND TOTAL LINE TO MAKE ROOM FOR MORE DATA."]